NUMERO_MANDATO;RIGA_MANDATO;QUIET;IMPORTO_RIGA;IMPORTO_MANDATO;BENEFICIARIO;CIG;TITOLO_PAGAMENTO;DATA_MANDATO;CAPITOLO;ARTICOLO;NUMERO_IMPEGNO;TITOLO;DESCR_TITOLO;LIVELLO_II;DESCR_LIVELLO_II;LIVELLO_III;DESCR_LIVELLO_III;LIVELLO_IV;DESCR_LIVELLO_IV;LIVELLO_V;DESCR_LIVELLO_V;DATA_PAG_EFF
309;1;0;800;3.600,00;OMESSO NOMINATIVO NEL RISPETTO DELLA NORMATIVA SULLA PROTEZIONE DATI PERSONALI; ;Liquidazione impegnativa di cura domiciliare - tipologia M. Quarto trimestre 2017 per Albertin Maria - A.L. A.C. N. 69 DEL 22.03.2018;04/04/2018;6710;0;101;1;Spese correnti;4;Trasferimenti correnti;2;Trasferimenti correnti a Famiglie;5;Altri trasferimenti a famiglie;999;Altri trasferimenti a famiglie n.a.c.;04/04/2018
309;2;0;400;3.600,00;OMESSO NOMINATIVO NEL RISPETTO DELLA NORMATIVA SULLA PROTEZIONE DATI PERSONALI; ;Liquidazione impegnativa di cura domiciliare per Mion Giuseppe - tipologia M. Quarto trimestre 2017 - A.L. A.C. N. 69 DEL 22.03.2018;04/04/2018;6710;0;101;1;Spese correnti;4;Trasferimenti correnti;2;Trasferimenti correnti a Famiglie;5;Altri trasferimenti a famiglie;999;Altri trasferimenti a famiglie n.a.c.;04/04/2018
309;3;0;1.200,00;3.600,00;OMESSO NOMINATIVO NEL RISPETTO DELLA NORMATIVA SULLA PROTEZIONE DATI PERSONALI; ;Liquidazione impegnativa di cura domiciliare per Santimaria Antonietta - tipologia M. Quarto trimestre 2017 - A.L. A.C. N. 69 DEL 22.03.2018;04/04/2018;6710;0;101;1;Spese correnti;4;Trasferimenti correnti;2;Trasferimenti correnti a Famiglie;5;Altri trasferimenti a famiglie;999;Altri trasferimenti a famiglie n.a.c.;04/04/2018
309;4;0;1.200,00;3.600,00;OMESSO NOMINATIVO NEL RISPETTO DELLA NORMATIVA SULLA PROTEZIONE DATI PERSONALI; ;Liquidazione impegnativa di cura domiciliare  per Rizzi Lorenzo - tipologia M. Quarto trimestre 2017  - A.L. A.C. N. 69 DEL 22.03.2018;04/04/2018;6710;0;101;1;Spese correnti;4;Trasferimenti correnti;2;Trasferimenti correnti a Famiglie;5;Altri trasferimenti a famiglie;999;Altri trasferimenti a famiglie n.a.c.;04/04/2018
310;1;0;480;6.360,00;OMESSO NOMINATIVO NEL RISPETTO DELLA NORMATIVA SULLA PROTEZIONE DATI PERSONALI; ;Impegnativa di cura domiciliare tipologia B secondo semestre 2017 per Albertin Maria - A.L. AC N. 68 DEL 22.03.2018;04/04/2018;6710;0;102;1;Spese correnti;4;Trasferimenti correnti;2;Trasferimenti correnti a Famiglie;5;Altri trasferimenti a famiglie;999;Altri trasferimenti a famiglie n.a.c.;04/04/2018
310;2;0;480;6.360,00;OMESSO NOMINATIVO NEL RISPETTO DELLA NORMATIVA SULLA PROTEZIONE DATI PERSONALI; ;Impegnativa di cura domiciliare tipologia B secondo semestre 2017 per Mion Giuseppe - A.L. AC N. 68 DEL 22.03.2018;04/04/2018;6710;0;102;1;Spese correnti;4;Trasferimenti correnti;2;Trasferimenti correnti a Famiglie;5;Altri trasferimenti a famiglie;999;Altri trasferimenti a famiglie n.a.c.;04/04/2018
310;3;0;360;6.360,00;OMESSO NOMINATIVO NEL RISPETTO DELLA NORMATIVA SULLA PROTEZIONE DATI PERSONALI; ;Impegnativa di cura domiciliare tipologia B secondo semestre 2017 per Gomiero Natale - A.L. AC N. 68 DEL 22.03.2018;04/04/2018;6710;0;102;1;Spese correnti;4;Trasferimenti correnti;2;Trasferimenti correnti a Famiglie;5;Altri trasferimenti a famiglie;999;Altri trasferimenti a famiglie n.a.c.;04/04/2018
310;4;0;720;6.360,00;OMESSO NOMINATIVO NEL RISPETTO DELLA NORMATIVA SULLA PROTEZIONE DATI PERSONALI; ;Impegnativa di cura domiciliare tipologia B secondo semestre 2017 per Mazzetto Antonietta - A.L. AC N. 68 DEL 22.03.2018;04/04/2018;6710;0;102;1;Spese correnti;4;Trasferimenti correnti;2;Trasferimenti correnti a Famiglie;5;Altri trasferimenti a famiglie;999;Altri trasferimenti a famiglie n.a.c.;04/04/2018
310;5;0;720;6.360,00;OMESSO NOMINATIVO NEL RISPETTO DELLA NORMATIVA SULLA PROTEZIONE DATI PERSONALI; ;Impegnativa di cura domiciliare tipologia B secondo semestre 2017 per Meneghini Antonio - A.L. AC N. 68 DEL 22.03.2018;04/04/2018;6710;0;102;1;Spese correnti;4;Trasferimenti correnti;2;Trasferimenti correnti a Famiglie;5;Altri trasferimenti a famiglie;999;Altri trasferimenti a famiglie n.a.c.;04/04/2018
310;6;0;720;6.360,00;OMESSO NOMINATIVO NEL RISPETTO DELLA NORMATIVA SULLA PROTEZIONE DATI PERSONALI; ;Impegnativa di cura domiciliare tipologia B secondo semestre 2017 per Meneghini Eufrasia - A.L. AC N. 68 DEL 22.03.2018;04/04/2018;6710;0;102;1;Spese correnti;4;Trasferimenti correnti;2;Trasferimenti correnti a Famiglie;5;Altri trasferimenti a famiglie;999;Altri trasferimenti a famiglie n.a.c.;04/04/2018
310;7;0;720;6.360,00;OMESSO NOMINATIVO NEL RISPETTO DELLA NORMATIVA SULLA PROTEZIONE DATI PERSONALI; ;Impegnativa di cura domiciliare tipologia B secondo semestre 2017 per Santimaria Anna - A.L. AC N. 68 DEL 22.03.2018;04/04/2018;6710;0;102;1;Spese correnti;4;Trasferimenti correnti;2;Trasferimenti correnti a Famiglie;5;Altri trasferimenti a famiglie;999;Altri trasferimenti a famiglie n.a.c.;04/04/2018
310;8;0;720;6.360,00;OMESSO NOMINATIVO NEL RISPETTO DELLA NORMATIVA SULLA PROTEZIONE DATI PERSONALI; ;Impegnativa di cura domiciliare tipologia B secondo semestre 2017 per Sarego Lina - A.L. AC N. 68 DEL 22.03.2018;04/04/2018;6710;0;102;1;Spese correnti;4;Trasferimenti correnti;2;Trasferimenti correnti a Famiglie;5;Altri trasferimenti a famiglie;999;Altri trasferimenti a famiglie n.a.c.;04/04/2018
310;9;0;720;6.360,00;OMESSO NOMINATIVO NEL RISPETTO DELLA NORMATIVA SULLA PROTEZIONE DATI PERSONALI; ;Impegnativa di cura domiciliare tipologia B secondo semestre 2017 per Mercurio Epifania - A.L. AC N. 68 DEL 22.03.2018;04/04/2018;6710;0;102;1;Spese correnti;4;Trasferimenti correnti;2;Trasferimenti correnti a Famiglie;5;Altri trasferimenti a famiglie;999;Altri trasferimenti a famiglie n.a.c.;04/04/2018
310;10;0;720;6.360,00;OMESSO NOMINATIVO NEL RISPETTO DELLA NORMATIVA SULLA PROTEZIONE DATI PERSONALI; ;Impegnativa di cura domiciliare tipologia B secondo semestre 2017per Ongaro Gina - A.L. AC N. 68 DEL 22.03.2018;04/04/2018;6710;0;102;1;Spese correnti;4;Trasferimenti correnti;2;Trasferimenti correnti a Famiglie;5;Altri trasferimenti a famiglie;999;Altri trasferimenti a famiglie n.a.c.;04/04/2018
311;1;0;887,38;887,38;TREVISAN VANESSA; ;Indennita di carica Sindaco MARZO 2018;05/04/2018;10;0;24;1;Spese correnti;3;Acquisto di beni e servizi;2;Acquisto di servizi;1;Organi e incarichi istituzionali dell'amministrazione;1;Organi istituzionali dell'amministrazione - Indennità;05/04/2018
312;1;0;177,48;177,48;CALAON SIMONE; ;Indennita di carica Vice-Sindaco MARZO 2018;05/04/2018;10;0;25;1;Spese correnti;3;Acquisto di beni e servizi;2;Acquisto di servizi;1;Organi e incarichi istituzionali dell'amministrazione;1;Organi istituzionali dell'amministrazione - Indennità;05/04/2018
313;1;0;266,21;266,21;ZAVATTIERO AGOSTINO; ;Indennita di carica Assessore MARZO 2018;05/04/2018;10;0;28;1;Spese correnti;3;Acquisto di beni e servizi;2;Acquisto di servizi;1;Organi e incarichi istituzionali dell'amministrazione;1;Organi istituzionali dell'amministrazione - Indennità;05/04/2018
314;1;0;266,21;266,21;SANTIMARIA ANDREA; ;Indennita di carica Assessore MARZO 2018;05/04/2018;10;0;26;1;Spese correnti;3;Acquisto di beni e servizi;2;Acquisto di servizi;1;Organi e incarichi istituzionali dell'amministrazione;1;Organi istituzionali dell'amministrazione - Indennità;05/04/2018
315;1;0;133,11;133,11;LAZZARETTO ROBERTA; ;Indennita di carica Assessore MARZO 2018;05/04/2018;10;0;27;1;Spese correnti;3;Acquisto di beni e servizi;2;Acquisto di servizi;1;Organi e incarichi istituzionali dell'amministrazione;1;Organi istituzionali dell'amministrazione - Indennità;05/04/2018
316;1;0;102,8;102,8;LAZZARETTO ROBERTA; ;Rimborso per spese di viaggio amministratori comunali MARZO 2018 - A.L. AC N. 72 DEL 03.04.2018;05/04/2018;230;0;33;1;Spese correnti;3;Acquisto di beni e servizi;2;Acquisto di servizi;1;Organi e incarichi istituzionali dell'amministrazione;2;Organi istituzionali dell'amministrazione - Rimborsi;05/04/2018
319;1;0;242,52;242,52;PILO SNC;Z641F2729B;SALDO Fatt.n. 2/E  del 28/02/2018 Fornitura pasti mese di febbraio 2018;05/04/2018;9375;0;206;1;Spese correnti;3;Acquisto di beni e servizi;2;Acquisto di servizi;99;Altri servizi;999;Altri servizi diversi n.a.c.;05/04/2018
320;1;0;75,15;75,15;Acquaviva srl Unipersonale;Z902265712;SALDO Fatt.n. 1800174/FE  del 29/03/2018 Fornitura n. 7 boccioni d'acqua;05/04/2018;9375;0;72;1;Spese correnti;3;Acquisto di beni e servizi;2;Acquisto di servizi;99;Altri servizi;999;Altri servizi diversi n.a.c.;05/04/2018
321;1;0;324;324;BOGONI ALFONSO & C. S.A.S.;Z9E1D16AO2;SALDO Fatt.n. V0000002FE  del 28/02/2018 Fornitura carburante per automezzi mese di febbraio 2018;05/04/2018;570;0;39;1;Spese correnti;3;Acquisto di beni e servizi;1;Acquisto di beni;2;Altri beni di consumo;2;Carburanti, combustibili e lubrificanti;05/04/2018
322;1;0;6.592,33;6.592,33;S.E.S.A. SPA;Z11182D6F2;SALDO Fatt.n. 2000336  del 28/02/2018 Servizio di smaltimento rifiuti mese di febbraio 2018;05/04/2018;5780;0;41;1;Spese correnti;3;Acquisto di beni e servizi;2;Acquisto di servizi;15;Contratti di servizio pubblico;4;Contratti di servizio per la raccolta rifiuti;05/04/2018
323;1;0;13.323,94;13.323,94;DE VIZIA TRANSFER S.P.A.;6848933E4B;SALDO Fatt.n. V3-30377  del 31/03/2018 Servizio raccolta rifiuti mese di marzo 2018;05/04/2018;5780;0;18;1;Spese correnti;3;Acquisto di beni e servizi;2;Acquisto di servizi;15;Contratti di servizio pubblico;4;Contratti di servizio per la raccolta rifiuti;05/04/2018
324;1;0;170,8;170,8;Flemi Service srl;ZCC22DD84B;SALDO Fatt.n. 0E0600063  del 04/04/2018 rilegatura registri stato civile anno 2017;16/04/2018;910;0;116;1;Spese correnti;3;Acquisto di beni e servizi;1;Acquisto di beni;2;Altri beni di consumo;999;Altri beni e materiali di consumo n.a.c.;16/04/2018
325;1;0;4.169,00;4.169,00;COOPERATIVA SOCIALE SERVIZI ASSOCIATI;7079166895;SALDO Fatt.n. D-127  del 31/03/2018 Servizio di trasporto scolastico mese di marzo 2018;16/04/2018;3413;0;279;1;Spese correnti;3;Acquisto di beni e servizi;2;Acquisto di servizi;15;Contratti di servizio pubblico;2;Contratti di servizio di trasporto scolastico;16/04/2018
326;1;0;5.242,91;5.242,91;MARTINI LUCIANO SRL;Z70188CBBO;SALDO Fatt.n. 4/EL  del 12/04/2018 LAVORI MANUTENZIONE STRADE PRIMO TRIMESTRE 2018;16/04/2018;1302;0;102;1;Spese correnti;3;Acquisto di beni e servizi;2;Acquisto di servizi;9;Manutenzione ordinaria e riparazioni;8;Manutenzione ordinaria e riparazioni di beni immobili;16/04/2018
327;1;0;559,88;559,88;Sodexo Italia Spa;64630250F4;SALDO Fatt.n. 7400012946  del 31/03/2018 Servizio di sorveglianza refettorio mese di marzo 2018;16/04/2018;3406;0;68;1;Spese correnti;3;Acquisto di beni e servizi;2;Acquisto di servizi;15;Contratti di servizio pubblico;6;Contratti di servizio per le mense scolastiche;16/04/2018
328;1;0;1.159,00;1.159,00;Sicurya s.r.l.;Z1F19ABFDD;SALDO Fatt.n. 0000008/PA  del 30/03/2018 acconto 50% incarico RSPP anno 2018;16/04/2018;785;0;129;1;Spese correnti;3;Acquisto di beni e servizi;2;Acquisto di servizi;4;Acquisto di servizi per formazione e addestramento del personale dell'ente;4;Acquisto di servizi per formazione obbligatoria;16/04/2018
329;1;0;2.998,22;2.998,22;Sodexo Italia Spa;64630250F4;SALDO Fatt.n. 7400012944  del 31/03/2018 Fornitura pasti ad alunni scuola materna mese di marzo 2018;16/04/2018;3404;0;65;1;Spese correnti;3;Acquisto di beni e servizi;2;Acquisto di servizi;15;Contratti di servizio pubblico;6;Contratti di servizio per le mense scolastiche;16/04/2018
330;1;0;2.988,77;2.988,77;Sodexo Italia Spa;64630250F4;SALDO Fatt.n. 7400012945  del 31/03/2018 Fornitura pasti ad alunni scuola elementare mese di marzo 2018;16/04/2018;3406;0;66;1;Spese correnti;3;Acquisto di beni e servizi;2;Acquisto di servizi;15;Contratti di servizio pubblico;6;Contratti di servizio per le mense scolastiche;16/04/2018
331;1;0;1.045,00;1.045,00;ZEFIRO SRL;Z3D1A45638;ACCONTO Fatt.n. 10/PA  del 31/03/2018 Servizio di pulizia edifici comunali MESE di MARZO 2018;16/04/2018;475;0;393;1;Spese correnti;3;Acquisto di beni e servizi;2;Acquisto di servizi;99;Altri servizi;999;Altri servizi diversi n.a.c.;16/04/2018
332;1;0;262,18;262,18;ZEFIRO SRL;Z3D1A45638;ACCONTO Fatt.n. 10/PA  del 31/03/2018 Servizio di pulizia edifici comunali MESE di MARZO 2018;16/04/2018;2973;0;394;1;Spese correnti;3;Acquisto di beni e servizi;2;Acquisto di servizi;99;Altri servizi;999;Altri servizi diversi n.a.c.;16/04/2018
333;1;0;294,75;294,75;ZEFIRO SRL;Z3D1A45638;ACCONTO Fatt.n. 10/PA  del 31/03/2018 Servizio di pulizia edifici comunali MESE di MARZO 2018;16/04/2018;37601;0;395;1;Spese correnti;3;Acquisto di beni e servizi;2;Acquisto di servizi;99;Altri servizi;999;Altri servizi diversi n.a.c.;16/04/2018
334;1;0;174,85;174,85;ZEFIRO SRL;Z3D1A45638;SALDO Fatt.n. 10/PA  del 31/03/2018 Servizio di pulizia edifici comunali MESE di MARZO 2018;16/04/2018;1400;0;396;1;Spese correnti;3;Acquisto di beni e servizi;2;Acquisto di servizi;9;Manutenzione ordinaria e riparazioni;8;Manutenzione ordinaria e riparazioni di beni immobili;16/04/2018
335;1;0;537,6;537,6;SCARSI MARCO;Z8A1FA667F;SALDO Fatt.n. 000001-2018-FE16SM  del 12/02/2018 PRESTAZIONI SANITARIE - visite dipendenti anno 2017;16/04/2018;785;0;270;1;Spese correnti;3;Acquisto di beni e servizi;2;Acquisto di servizi;4;Acquisto di servizi per formazione e addestramento del personale dell'ente;4;Acquisto di servizi per formazione obbligatoria;16/04/2018
336;1;0;81,74;81,74;GRAFICHE E. GASPARI S.R.L.;Z58213229D;SALDO Fatt.n. 06231  del 30/03/2018 Fornitura timbri per uffici;16/04/2018;4753;0;397;1;Spese correnti;3;Acquisto di beni e servizi;1;Acquisto di beni;2;Altri beni di consumo;1;Carta, cancelleria e stampati;16/04/2018
337;1;0;750;750;"CASA DI RIPOSO ""A. SIMIONATI"""; ;SALDO Fatt.n. 37/E  del 31/03/2018 Quota retta ricovero R.R. mese di marzo 2018;16/04/2018;6875;0;15;1;Spese correnti;3;Acquisto di beni e servizi;2;Acquisto di servizi;99;Altri servizi;999;Altri servizi diversi n.a.c.;16/04/2018
338;1;0;390,4;390,4;Mens Mensae Srl;Z55204EB49;SALDO Fatt.n. 101  del 05/04/2018 Rilascio certificazioni per dichiarazione 730/2018;16/04/2018;3404;0;71;1;Spese correnti;3;Acquisto di beni e servizi;2;Acquisto di servizi;15;Contratti di servizio pubblico;6;Contratti di servizio per le mense scolastiche;16/04/2018
339;1;0;97,6;97,6;CISL VENETO SERVIZI S.R.L.; ;SALDO Fatt.n. PDP/23  del 22/03/2018 Redazione domande bonus gas ed energia anno 2017;16/04/2018;6935;0;135;1;Spese correnti;4;Trasferimenti correnti;2;Trasferimenti correnti a Famiglie;5;Altri trasferimenti a famiglie;999;Altri trasferimenti a famiglie n.a.c.;16/04/2018
340;1;0;159,09;159,09;POSTE ITALIANE SPA;Z961438A4F;SALDO Fatt.n. 8718101797  del 26/03/2018 Servizio di postalizzazione febbraio 2018 - Rendiconto 2096137474;16/04/2018;4800;0;42;1;Spese correnti;3;Acquisto di beni e servizi;2;Acquisto di servizi;16;Servizi amministrativi;2;Spese postali;16/04/2018
341;1;0;265,85;937,18;OMESSO NOMINATIVO NEL RISPETTO DELLA NORMATIVA SULLA PROTEZIONE DATI PERSONALI; ;Contributo Regionale per acquisto libri di testo  A.S. 2017/2018 a Sow Coumba - a.l. AC N. 75 del 05.04.2018;16/04/2018;6890;0;127;1;Spese correnti;4;Trasferimenti correnti;2;Trasferimenti correnti a Famiglie;5;Altri trasferimenti a famiglie;999;Altri trasferimenti a famiglie n.a.c.;16/04/2018
341;2;0;45,2;937,18;OMESSO NOMINATIVO NEL RISPETTO DELLA NORMATIVA SULLA PROTEZIONE DATI PERSONALI; ;Contributo Regionale per acquisto libri di testo  A.S. 2017/2018 per Bellucco Matteo - a.l. AC N. 75 DEL 05.04.2018;16/04/2018;6890;0;127;1;Spese correnti;4;Trasferimenti correnti;2;Trasferimenti correnti a Famiglie;5;Altri trasferimenti a famiglie;999;Altri trasferimenti a famiglie n.a.c.;16/04/2018
341;3;0;108,9;937,18;OMESSO NOMINATIVO NEL RISPETTO DELLA NORMATIVA SULLA PROTEZIONE DATI PERSONALI; ;Contributo Regionale per acquisto libri di testo  A.S. 2017/2018 per Bellucco Alessia - a.l. AC N. 75 DEL 05.04.2018;16/04/2018;6890;0;127;1;Spese correnti;4;Trasferimenti correnti;2;Trasferimenti correnti a Famiglie;5;Altri trasferimenti a famiglie;999;Altri trasferimenti a famiglie n.a.c.;16/04/2018
341;4;0;241,45;937,18;OMESSO NOMINATIVO NEL RISPETTO DELLA NORMATIVA SULLA PROTEZIONE DATI PERSONALI; ;Contributo Regionale per acquisto libri di testo  A.S. 2017/2018 per Beccaro Alessandra - a.l. AC N. 75 DEL 05.04.2018;16/04/2018;6890;0;127;1;Spese correnti;4;Trasferimenti correnti;2;Trasferimenti correnti a Famiglie;5;Altri trasferimenti a famiglie;999;Altri trasferimenti a famiglie n.a.c.;16/04/2018
341;5;0;209;937,18;OMESSO NOMINATIVO NEL RISPETTO DELLA NORMATIVA SULLA PROTEZIONE DATI PERSONALI; ;Contributo Regionale per acquisto libri di testo  A.S. 2017/2018 per De santi Nicole - a.l. AC N. 75 DEL 05.04.2018;16/04/2018;6890;0;127;1;Spese correnti;4;Trasferimenti correnti;2;Trasferimenti correnti a Famiglie;5;Altri trasferimenti a famiglie;999;Altri trasferimenti a famiglie n.a.c.;16/04/2018
341;6;0;66,78;937,18;OMESSO NOMINATIVO NEL RISPETTO DELLA NORMATIVA SULLA PROTEZIONE DATI PERSONALI; ;Contributo Regionale per acquisto libri di testo  A.S. 2017/2018 per Spolverato Marco - a.l. AC N. 75 DEL 05.04.2018;16/04/2018;6890;0;127;1;Spese correnti;4;Trasferimenti correnti;2;Trasferimenti correnti a Famiglie;5;Altri trasferimenti a famiglie;999;Altri trasferimenti a famiglie n.a.c.;16/04/2018
363;1;0;278,98;1.530,80;E.ON Energia S.p.a.;Z7113FE6B2;SALDO Fatt.n. 40002353  del 03/04/2018 Fornitura gas naturale utenza Sede Municipale (matricola contatore 30155066) mese di febbraio 2018;26/04/2018;4751;0;60;1;Spese correnti;3;Acquisto di beni e servizi;2;Acquisto di servizi;5;Utenze e canoni;6;Gas;26/04/2018
363;2;0;1.251,82;1.530,80;E.ON Energia S.p.a.;Z7113FE6B2;SALDO Fatt.n. 40002869  del 03/04/2018 Fornitura gas naturale utenza Sede Municipale (matricola contatore 1545006563) mese di febbraio 2018;26/04/2018;4751;0;60;1;Spese correnti;3;Acquisto di beni e servizi;2;Acquisto di servizi;5;Utenze e canoni;6;Gas;26/04/2018
364;1;0;450,91;450,91;E.ON Energia S.p.a.;Z7113FE6B2;ACCONTO Fatt.n. 40002895  del 03/04/2018 Fornitura gas naturale utenza Villa Venier conguaglio periodo dal 15.11.2017 al  31.12.2017;26/04/2018;1312;0;66;1;Spese correnti;3;Acquisto di beni e servizi;2;Acquisto di servizi;5;Utenze e canoni;6;Gas;26/04/2018
365;1;0;450,91;450,91;E.ON Energia S.p.a.; ;SALDO Fatt.n. 40002895  del 03/04/2018 Fornitura gas naturale utenza Villa Venier periodo dal 01.01.2018 al 10.02.2018;26/04/2018;1312;0;64;1;Spese correnti;3;Acquisto di beni e servizi;2;Acquisto di servizi;5;Utenze e canoni;6;Gas;26/04/2018
366;1;0;1.514,90;1.514,90;E.ON Energia S.p.a.;Z7113FE6B2;ACCONTO Fatt.n. 40002870  del 03/04/2018 Fornitura energia elettrica utenze Polo Scolastico mese di febbraio 2018;26/04/2018;28001;0;61;1;Spese correnti;3;Acquisto di beni e servizi;2;Acquisto di servizi;5;Utenze e canoni;6;Gas;26/04/2018
367;1;0;1.514,90;1.514,90;E.ON Energia S.p.a.; ;ACCONTO Fatt.n. 40002870  del 03/04/2018 Fornitura energia elettrica utenze Polo Scolastico mese di febbraio 2018;26/04/2018;29701;0;62;1;Spese correnti;3;Acquisto di beni e servizi;2;Acquisto di servizi;5;Utenze e canoni;6;Gas;26/04/2018
368;1;0;1.514,88;1.514,88;E.ON Energia S.p.a.; ;SALDO Fatt.n. 40002870  del 03/04/2018 Fornitura energia elettrica utenze Polo Scolastico mese di febbraio 2018;26/04/2018;31801;0;63;1;Spese correnti;3;Acquisto di beni e servizi;2;Acquisto di servizi;5;Utenze e canoni;6;Gas;26/04/2018
369;1;0;2.055,96;2.055,96;E.ON Energia S.p.a.;Z7113FE6B2;SALDO Fatt.n. 40002871  del 03/04/2018 Fornitura gas naturale utenza Immobile Piazzetta Martiri mese di febbraio 2018;26/04/2018;1405;0;59;1;Spese correnti;3;Acquisto di beni e servizi;2;Acquisto di servizi;5;Utenze e canoni;6;Gas;26/04/2018
370;1;0;364,38;364,38;Illumia S.p.A.;Z0E14167CF;SALDO Fatt.n. 2003-PE  del 21/03/2018 Fornitura energia elettrica utenza Immobile Piazzetta Martiri mese di febbraio 2018  -  provv. 58;26/04/2018;1405;0;88;1;Spese correnti;3;Acquisto di beni e servizi;2;Acquisto di servizi;5;Utenze e canoni;4;Energia elettrica;26/04/2018
371;1;0;143,91;3.975,67;Illumia S.p.A.;Z0E14167CF;SALDO Fatt.n. 2007-PE  del 21/03/2018 Fornitura energia elettrica utenza Piazzetta Spolverato mese febbraio 2018  -  provv. 64;26/04/2018;7420;0;89;1;Spese correnti;3;Acquisto di beni e servizi;2;Acquisto di servizi;5;Utenze e canoni;4;Energia elettrica;26/04/2018
371;2;0;145,14;3.975,67;Illumia S.p.A.;Z0E14167CF;SALDO Fatt.n. 2097-PE  del 21/03/2018 Fornitura energia elettrica utenza illuminazione pubblica Piazzetta Martiri (POD IT001E32268714) mese febbraio 2018  -  provv. 65;26/04/2018;7420;0;89;1;Spese correnti;3;Acquisto di beni e servizi;2;Acquisto di servizi;5;Utenze e canoni;4;Energia elettrica;26/04/2018
371;3;0;3.686,62;3.975,67;Illumia S.p.A.;Z0E14167CF;SALDO Fatt.n. 2096-PE  del 21/03/2018 Fornitura energia elettrica utenze illuminazione pubblica mese febbraio 2018  -  provv. 61;26/04/2018;7420;0;89;1;Spese correnti;3;Acquisto di beni e servizi;2;Acquisto di servizi;5;Utenze e canoni;4;Energia elettrica;26/04/2018
372;1;0;411,8;411,8;Illumia S.p.A.;Z0E14167CF;SALDO Fatt.n. 2006-PE  del 21/03/2018 Fornitura energia elettrica utenza Sede Municipale mese febbraio 2018  -  provv. 60;26/04/2018;4751;0;80;1;Spese correnti;3;Acquisto di beni e servizi;2;Acquisto di servizi;5;Utenze e canoni;4;Energia elettrica;26/04/2018
373;1;0;150,32;641,82;Illumia S.p.A.;Z0E14167CF;ACCONTO Fatt.n. 2005-PE  del 21/03/2018 Fornitura energia elettrica utenza impianto sportivo Zovon mese febbraio 2018  -  provv. 62;26/04/2018;64981;0;85;1;Spese correnti;3;Acquisto di beni e servizi;2;Acquisto di servizi;5;Utenze e canoni;4;Energia elettrica;26/04/2018
373;2;0;491,5;641,82;Illumia S.p.A.;Z0E14167CF;SALDO Fatt.n. 2098-PE  del 21/03/2018 Fornitura energia elettrica utenza impianto sportivo Via Marconi mese febbraio 2018  -  provv. 63;26/04/2018;64981;0;85;1;Spese correnti;3;Acquisto di beni e servizi;2;Acquisto di servizi;5;Utenze e canoni;4;Energia elettrica;26/04/2018
374;1;0;70,65;70,65;Illumia S.p.A.;Z0E14167CF;SALDO Fatt.n. 2005-PE  del 21/03/2018 Fornitura energia elettrica utenza impianto sportivo Zovon mese febbraio 2018 -  provv. 62;26/04/2018;64981;0;142;1;Spese correnti;3;Acquisto di beni e servizi;2;Acquisto di servizi;5;Utenze e canoni;4;Energia elettrica;26/04/2018
375;1;0;452,13;452,13;Illumia S.p.A.;Z0E14167CF;SALDO Fatt.n. 2004-PE  del 21/03/2018 Fornitura energia elettrica utenza Villa Venier mese febbraio 2018  -  provv. 59;26/04/2018;1312;0;87;1;Spese correnti;3;Acquisto di beni e servizi;2;Acquisto di servizi;5;Utenze e canoni;4;Energia elettrica;26/04/2018
376;1;0;442,27;442,27;Illumia S.p.A.;Z0E14167CF;ACCONTO Fatt.n. 2002-PE  del 21/03/2018 Fornitura energia elettrica utenza Polo Scolastico mese febbraio 2018  -  provv. 66;26/04/2018;28001;0;81;1;Spese correnti;3;Acquisto di beni e servizi;2;Acquisto di servizi;5;Utenze e canoni;4;Energia elettrica;26/04/2018
377;1;0;442,27;442,27;Illumia S.p.A.;Z0E14167CF;ACCONTO Fatt.n. 2002-PE  del 21/03/2018 Fornitura energia elettrica utenza Polo Scolastico mese febbraio 2018  -  provv. 66;26/04/2018;29701;0;82;1;Spese correnti;3;Acquisto di beni e servizi;2;Acquisto di servizi;5;Utenze e canoni;4;Energia elettrica;26/04/2018
378;1;0;442,28;442,28;Illumia S.p.A.;Z0E14167CF;SALDO Fatt.n. 2002-PE  del 21/03/2018 Fornitura energia elettrica utenza Polo Scolastico mese febbraio 2018  -  provv. 66;26/04/2018;31801;0;83;1;Spese correnti;3;Acquisto di beni e servizi;2;Acquisto di servizi;5;Utenze e canoni;4;Energia elettrica;26/04/2018
379;1;0;90,48;90,48;Vodafone Italia S.p.A.;ZD11381BD3;ACCONTO Fatt.n. AI05261114  del 21/03/2018 Spese per servizio di telefonia utenze comunali periodo dal 20 gennaio 2018 al 16 marzo 2018;26/04/2018;4751;0;119;1;Spese correnti;3;Acquisto di beni e servizi;2;Acquisto di servizi;5;Utenze e canoni;2;Telefonia mobile;26/04/2018
380;1;0;97,36;97,36;Vodafone Italia S.p.A.;Z941E11750;ACCONTO Fatt.n. AI05261114  del 21/03/2018 Spese per servizio di telefonia utenze comunali periodo dal 20 gennaio 2018 al 16 marzo 2018;26/04/2018;1312;0;139;1;Spese correnti;3;Acquisto di beni e servizi;2;Acquisto di servizi;5;Utenze e canoni;1;Telefonia fissa;26/04/2018
381;1;0;85,16;85,16;Vodafone Italia S.p.A.;Z941E11750;ACCONTO Fatt.n. AI05261114  del 21/03/2018 Spese per servizio di telefonia utenze comunali periodo dal 20 gennaio 2018 al 16 marzo 2018;26/04/2018;3761;0;144;1;Spese correnti;3;Acquisto di beni e servizi;2;Acquisto di servizi;5;Utenze e canoni;1;Telefonia fissa;26/04/2018
382;1;0;139,08;139,08;Vodafone Italia S.p.A.;Z941E11750;ACCONTO Fatt.n. AI05261114  del 21/03/2018 Spese per servizio di telefonia utenze comunali periodo dal 20 gennaio 2018 al 16 marzo 2018;26/04/2018;28001;0;140;1;Spese correnti;3;Acquisto di beni e servizi;2;Acquisto di servizi;5;Utenze e canoni;1;Telefonia fissa;26/04/2018
383;1;0;139,08;139,08;Vodafone Italia S.p.A.;Z941E11750;ACCONTO Fatt.n. AI05261114  del 21/03/2018 Spese per servizio di telefonia utenze comunali periodo dal 20 gennaio 2018 al 16 marzo 2018;26/04/2018;29701;0;141;1;Spese correnti;3;Acquisto di beni e servizi;2;Acquisto di servizi;5;Utenze e canoni;1;Telefonia fissa;26/04/2018
384;1;0;139,08;139,08;Vodafone Italia S.p.A.;Z941E11750;ACCONTO Fatt.n. AI05261114  del 21/03/2018 Spese per servizio di telefonia utenze comunali periodo dal 20 gennaio 2018 al 16 marzo 2018;26/04/2018;31801;0;142;1;Spese correnti;3;Acquisto di beni e servizi;2;Acquisto di servizi;5;Utenze e canoni;1;Telefonia fissa;26/04/2018
385;1;0;472,37;472,37;Vodafone Italia S.p.A.;Z941E11750;SALDO Fatt.n. AI05261114  del 21/03/2018 Spese per servizio di telefonia utenze comunali periodo dal 20 gennaio 2018 al 16 marzo 2018;26/04/2018;4751;0;143;1;Spese correnti;3;Acquisto di beni e servizi;2;Acquisto di servizi;5;Utenze e canoni;1;Telefonia fissa;26/04/2018
388;1;0;887,38;887,38;TREVISAN VANESSA; ;Indennita di carica Sindaco aprile 2018;03/05/2018;10;0;24;1;Spese correnti;3;Acquisto di beni e servizi;2;Acquisto di servizi;1;Organi e incarichi istituzionali dell'amministrazione;1;Organi istituzionali dell'amministrazione - Indennità;03/05/2018
389;1;0;177,48;177,48;CALAON SIMONE; ;Indennita di carica Vice-Sindaco aprile 2018;03/05/2018;10;0;25;1;Spese correnti;3;Acquisto di beni e servizi;2;Acquisto di servizi;1;Organi e incarichi istituzionali dell'amministrazione;1;Organi istituzionali dell'amministrazione - Indennità;03/05/2018
390;1;0;266,21;266,21;ZAVATTIERO AGOSTINO; ;Indennita di carica Assessore aprile 2018;03/05/2018;10;0;28;1;Spese correnti;3;Acquisto di beni e servizi;2;Acquisto di servizi;1;Organi e incarichi istituzionali dell'amministrazione;1;Organi istituzionali dell'amministrazione - Indennità;03/05/2018
391;1;0;266,21;266,21;SANTIMARIA ANDREA; ;Indennita di carica Assessore aprile 2018;03/05/2018;10;0;26;1;Spese correnti;3;Acquisto di beni e servizi;2;Acquisto di servizi;1;Organi e incarichi istituzionali dell'amministrazione;1;Organi istituzionali dell'amministrazione - Indennità;03/05/2018
392;1;0;133,11;133,11;LAZZARETTO ROBERTA; ;Indennita di carica Assessore aprile 2018;03/05/2018;10;0;27;1;Spese correnti;3;Acquisto di beni e servizi;2;Acquisto di servizi;1;Organi e incarichi istituzionali dell'amministrazione;1;Organi istituzionali dell'amministrazione - Indennità;03/05/2018
395;1;0;110,88;110,88;LAZZARETTO ROBERTA; ;Rimborso per spese di viaggio assessore Lazzaretto mese di aprile 2018 - A.L. AC N. 91 DEL 02.05.2018;03/05/2018;230;0;33;1;Spese correnti;3;Acquisto di beni e servizi;2;Acquisto di servizi;1;Organi e incarichi istituzionali dell'amministrazione;2;Organi istituzionali dell'amministrazione - Rimborsi;03/05/2018
396;1;0;120;120;ECONOMO COMUNALE; ;Rifusione buoni economato n. 17 - A.L. AC N. 92 del 02.05.2018;03/05/2018;445;0;76;1;Spese correnti;3;Acquisto di beni e servizi;2;Acquisto di servizi;4;Acquisto di servizi per formazione e addestramento del personale dell'ente;999;Acquisto di servizi per altre spese per formazione e addestramento n.a.c.;03/05/2018
397;1;0;15;15;ECONOMO COMUNALE; ;Rifusione buoni economato n. 23 - A.L. AC N. 92 DEL 02.05.2018;03/05/2018;571;0;77;1;Spese correnti;3;Acquisto di beni e servizi;2;Acquisto di servizi;99;Altri servizi;999;Altri servizi diversi n.a.c.;03/05/2018
398;1;0;33,7;33,7;ECONOMO COMUNALE; ;Rifusione buoni economato n. 19 20 22 24p - A.L. AC N. 92 DEL 02.05.2018;03/05/2018;1305;0;79;1;Spese correnti;3;Acquisto di beni e servizi;1;Acquisto di beni;2;Altri beni di consumo;999;Altri beni e materiali di consumo n.a.c.;03/05/2018
399;1;0;56,8;56,8;ECONOMO COMUNALE; ;rIFUSIONE BUONI ECONOMATO N. 24P 25 28 29 30  31 - a.l. ac n. 92 del 02.05.2018;03/05/2018;1305;0;111;1;Spese correnti;3;Acquisto di beni e servizi;1;Acquisto di beni;2;Altri beni di consumo;999;Altri beni e materiali di consumo n.a.c.;03/05/2018
400;1;0;58,25;58,25;ECONOMO COMUNALE; ;Rifusione buoni economato n. 16p - A.L. AC N. 92 DEL 02.05.2018;03/05/2018;4754;0;1;1;Spese correnti;3;Acquisto di beni e servizi;1;Acquisto di beni;2;Altri beni di consumo;999;Altri beni e materiali di consumo n.a.c.;03/05/2018
401;1;0;150;150;ECONOMO COMUNALE; ;Rifusione buoni economato n. 16p 18 21 26p - A.L. AC N. 92 DEL 02.05.2018;03/05/2018;4754;0;78;1;Spese correnti;3;Acquisto di beni e servizi;1;Acquisto di beni;2;Altri beni di consumo;999;Altri beni e materiali di consumo n.a.c.;03/05/2018
402;1;0;15,95;15,95;ECONOMO COMUNALE; ;Rifusione buoni economto n. 26p 27 - A.L. AC N. 92 DEL 02.05.2018;03/05/2018;4754;0;110;1;Spese correnti;3;Acquisto di beni e servizi;1;Acquisto di beni;2;Altri beni di consumo;999;Altri beni e materiali di consumo n.a.c.;03/05/2018
403;1;0;22,9;22,9;ECONOMO COMUNALE; ;Rifusione buoni economato n. 32 33 - A.L. AC N. 92 DEL 02.05.2018;03/05/2018;29702;0;114;1;Spese correnti;3;Acquisto di beni e servizi;1;Acquisto di beni;2;Altri beni di consumo;999;Altri beni e materiali di consumo n.a.c.;03/05/2018
404;1;0;331,84;331,84;Beton Asfalti srl;ZCA232D453;SALDO Fatt.n. 264/SP/SE  del 27/04/2018 Fornitura sigillante VIBROBLOCK in cartucce;03/05/2018;1300;0;139;1;Spese correnti;3;Acquisto di beni e servizi;1;Acquisto di beni;2;Altri beni di consumo;999;Altri beni e materiali di consumo n.a.c.;03/05/2018
405;1;0;384;384;BOGONI ALFONSO & C. S.A.S.;Z9E1D16AO2;ACCONTO Fatt.n. V0000003FE  del 31/03/2018 Fornitura carburante mezzi comunali marzo 2018;03/05/2018;570;0;39;1;Spese correnti;3;Acquisto di beni e servizi;1;Acquisto di beni;2;Altri beni di consumo;2;Carburanti, combustibili e lubrificanti;03/05/2018
406;1;0;49;49;BOGONI ALFONSO & C. S.A.S.;Z9E1D16AO2;SALDO Fatt.n. V0000003FE  del 31/03/2018 Fornitura carburante mezzi comunali marzo 2018;03/05/2018;2665;0;40;1;Spese correnti;3;Acquisto di beni e servizi;1;Acquisto di beni;2;Altri beni di consumo;999;Altri beni e materiali di consumo n.a.c.;03/05/2018
407;1;0;2.470,91;2.470,91;BARBIN IMPIANTI Srl;ZD31B4433D;SALDO Fatt.n. 36S  del 30/04/2018 Servizio di manutenzione ordinaria impianti elettrici primo quadrimestre 2018;03/05/2018;7430;0;339;1;Spese correnti;3;Acquisto di beni e servizi;2;Acquisto di servizi;9;Manutenzione ordinaria e riparazioni;4;Manutenzione ordinaria e riparazioni di impianti e macchinari;03/05/2018
408;1;0;17.844,54;17.844,54;BARBIN IMPIANTI Srl;Z65230F22A;SALDO Fatt.n. 29S  del 13/04/2018 Lavori elettrici presso impianti comunali (Riconoscimento debito fuori bilancio);03/05/2018;1303;0;128;1;Spese correnti;3;Acquisto di beni e servizi;2;Acquisto di servizi;9;Manutenzione ordinaria e riparazioni;8;Manutenzione ordinaria e riparazioni di beni immobili;03/05/2018
409;1;0;8.274,35;8.274,35;S.E.S.A. SPA;Z11182D6F2;SALDO Fatt.n. 2000497  del 31/03/2018 servizio smaltimento rifiuti mese di marzo 2018;03/05/2018;5780;0;41;1;Spese correnti;3;Acquisto di beni e servizi;2;Acquisto di servizi;15;Contratti di servizio pubblico;4;Contratti di servizio per la raccolta rifiuti;03/05/2018
410;1;0;185,76;185,76;PILO SNC;Z641F2729B;SALDO Fatt.n. 3/E  del 31/03/2018 Servizio sostitutivo mensa dipendenti  marzo 2018;03/05/2018;9375;0;206;1;Spese correnti;3;Acquisto di beni e servizi;2;Acquisto di servizi;99;Altri servizi;999;Altri servizi diversi n.a.c.;03/05/2018
411;1;0;3.037,80;3.037,80;Boxxapps srl;Z091F3CBB7;SALDO Fatt.n. 1/180222  del 24/04/2018 Convenzione servizi X-server X-storage e X-antivirus anno 2018;03/05/2018;555;0;218;1;Spese correnti;3;Acquisto di beni e servizi;2;Acquisto di servizi;19;Servizi informatici e di telecomunicazioni;1;Gestione e manutenzione applicazioni;03/05/2018
412;1;0;124,02;124,02;POSTE ITALIANE SPA;Z961438A4F;SALDO Fatt.n. 8718134881  del 24/04/2018 Spese postali febbraio 2018 - Rendiconto 2096593576;03/05/2018;4800;0;42;1;Spese correnti;3;Acquisto di beni e servizi;2;Acquisto di servizi;16;Servizi amministrativi;2;Spese postali;03/05/2018
413;1;0;536,8;536,8;TECNOCOPIA SNC;ZB623399E4;SALDO Fatt.n. P/17  del 23/04/2018 Intervento tecnico su multifunzione Task Alfa 221 UTC;03/05/2018;780;0;138;1;Spese correnti;3;Acquisto di beni e servizi;1;Acquisto di beni;2;Altri beni di consumo;999;Altri beni e materiali di consumo n.a.c.;03/05/2018
414;1;0;220;220;ISTITUTO COMPRENSIVO LOZZO ATESTINO; ;Contributo per la realizzazione del progetto di orientamento scolastico A.S. 2017/2018 - A.L. AC N. 86 DEL 23.04.2018;03/05/2018;3415;0;125;1;Spese correnti;4;Trasferimenti correnti;2;Trasferimenti correnti a Famiglie;5;Altri trasferimenti a famiglie;999;Altri trasferimenti a famiglie n.a.c.;03/05/2018
415;1;0;2.417,13;2.417,13;Melillo Servizi Ambientali e Cimiteriali s.r.l.;ZE418C2969;SALDO Fatt.n. 2207  del 31/03/2018 Servizio di sepoltura primo trimestre 2018;03/05/2018;5190;0;85;1;Spese correnti;3;Acquisto di beni e servizi;2;Acquisto di servizi;99;Altri servizi;999;Altri servizi diversi n.a.c.;03/05/2018
416;1;0;300;750;OMESSO NOMINATIVO NEL RISPETTO DELLA NORMATIVA SULLA PROTEZIONE DATI PERSONALI; ;Erogazione contributi economici aprile e maggio 2018 -A.l. AC n. 87 del 24.04.2018;03/05/2018;6935;0;131;1;Spese correnti;4;Trasferimenti correnti;2;Trasferimenti correnti a Famiglie;5;Altri trasferimenti a famiglie;999;Altri trasferimenti a famiglie n.a.c.;03/05/2018
416;2;0;100;750;OMESSO NOMINATIVO NEL RISPETTO DELLA NORMATIVA SULLA PROTEZIONE DATI PERSONALI; ;Erogazione contributi economici aprile 2018 -A.l. AC n. 87 del 24.04.2018;03/05/2018;6935;0;131;1;Spese correnti;4;Trasferimenti correnti;2;Trasferimenti correnti a Famiglie;5;Altri trasferimenti a famiglie;999;Altri trasferimenti a famiglie n.a.c.;03/05/2018
416;3;0;150;750;OMESSO NOMINATIVO NEL RISPETTO DELLA NORMATIVA SULLA PROTEZIONE DATI PERSONALI; ;Erogazione contributi economici aprile 2018 -A.l. AC n. 87 del 24.04.2018;03/05/2018;6935;0;131;1;Spese correnti;4;Trasferimenti correnti;2;Trasferimenti correnti a Famiglie;5;Altri trasferimenti a famiglie;999;Altri trasferimenti a famiglie n.a.c.;03/05/2018
416;4;0;200;750;OMESSO NOMINATIVO NEL RISPETTO DELLA NORMATIVA SULLA PROTEZIONE DATI PERSONALI; ;Erogazione contributi economici aprile  2018 -A.l. AC n. 87 del 24.04.2018;03/05/2018;6935;0;131;1;Spese correnti;4;Trasferimenti correnti;2;Trasferimenti correnti a Famiglie;5;Altri trasferimenti a famiglie;999;Altri trasferimenti a famiglie n.a.c.;03/05/2018
417;1;0;585,38;585,38;TESORERIA PROVINCIALE DELLO STATO - RISCOSSIONE TRIBUTI; ;Liquidazione I.V.A. a debito primo trimestre 2018 - a.l. AC N. 93 DEL 04.05.2018;07/05/2018;9240;0;144;1;Spese correnti;10;Altre spese correnti;3;Versamenti IVA a debito;1;Versamenti IVA a debito per le gestioni commerciali;1;Versamenti IVA a debito per le gestioni commerciali;07/05/2018
418;1;0;279,28;1.483,48;E.ON Energia S.p.a.;Z7113FE6B2;SALDO Fatt.n. 40003110  del 02/05/2018 Fornitura gas naturale utenza Sede Municipale (contatore 30155066) mese di marzo 2018;09/05/2018;4751;0;60;1;Spese correnti;3;Acquisto di beni e servizi;2;Acquisto di servizi;5;Utenze e canoni;6;Gas;09/05/2018
418;2;0;1.204,20;1.483,48;E.ON Energia S.p.a.;Z7113FE6B2;SALDO Fatt.n. 40003622  del 02/05/2018 Fornitura gas naturale utenza Sede Municipale (matricola contatore 1545006563) mese di marzo 2018;09/05/2018;4751;0;60;1;Spese correnti;3;Acquisto di beni e servizi;2;Acquisto di servizi;5;Utenze e canoni;6;Gas;09/05/2018
419;1;0;584,44;584,44;E.ON Energia S.p.a.;Z7113FE6B2;SALDO Fatt.n. 40003648  del 02/05/2018 Fornitura gas naturale utenza Villa Venier periodo dal 11 febbraio 2018 al 31 marzo 2018;09/05/2018;1312;0;64;1;Spese correnti;3;Acquisto di beni e servizi;2;Acquisto di servizi;5;Utenze e canoni;6;Gas;09/05/2018
420;1;0;1.565,27;1.565,27;E.ON Energia S.p.a.;Z7113FE6B2;ACCONTO Fatt.n. 40003623  del 02/05/2018 Fornitura gas naturale utenza Polo Scolastico mese di marzo 2018;09/05/2018;28001;0;61;1;Spese correnti;3;Acquisto di beni e servizi;2;Acquisto di servizi;5;Utenze e canoni;6;Gas;09/05/2018
421;1;0;1.565,27;1.565,27;E.ON Energia S.p.a.; ;ACCONTO Fatt.n. 40003623  del 02/05/2018 Fornitura gas naturale utenza Polo Scolastico mese di marzo 2018;09/05/2018;29701;0;62;1;Spese correnti;3;Acquisto di beni e servizi;2;Acquisto di servizi;5;Utenze e canoni;6;Gas;09/05/2018
422;1;0;1.565,26;1.565,26;E.ON Energia S.p.a.; ;SALDO Fatt.n. 40003623  del 02/05/2018 Fornitura gas naturale utenza Polo Scolastico mese di marzo 2018;09/05/2018;31801;0;63;1;Spese correnti;3;Acquisto di beni e servizi;2;Acquisto di servizi;5;Utenze e canoni;6;Gas;09/05/2018
423;1;0;1.931,22;1.931,22;E.ON Energia S.p.a.;Z7113FE6B2;SALDO Fatt.n. 40003624  del 02/05/2018 Fornitura gas naturale utenza immobile Piazzetta Martiri periodo dal 28 febbraio al 27 marzo 2018;09/05/2018;1405;0;59;1;Spese correnti;3;Acquisto di beni e servizi;2;Acquisto di servizi;5;Utenze e canoni;6;Gas;09/05/2018
424;1;0;4.969,19;4.969,19;I.C.A. IMPOSTE COMUNALI AFFINI;Z291C60108;SALDO Fatt.n. FE0001465  del 23/04/2018 Servizio di liquidazione, accertamento e riscossione dell'imposta comunale sulla pubblicita' e dei diritti sulle pubbliche affissioni relativo al primo trimestre 2018;10/05/2018;1480;0;173;1;Spese correnti;3;Acquisto di beni e servizi;2;Acquisto di servizi;3;Aggi di riscossione;999;Altri aggi di riscossione n.a.c.;10/05/2018
426;1;0;2.700,76;2.700,76;Sodexo Italia Spa;64630250F4;SALDO Fatt.n. 7400018118  del 30/04/2018 Fornitura pasti ad alunni scuola materna mese di aprile 2018;15/05/2018;3404;0;65;1;Spese correnti;3;Acquisto di beni e servizi;2;Acquisto di servizi;15;Contratti di servizio pubblico;6;Contratti di servizio per le mense scolastiche;15/05/2018
427;1;0;2.634,65;2.634,65;Sodexo Italia Spa;64630250F4;SALDO Fatt.n. 7400018119  del 30/04/2018 Pasti alunni scuole elementari mese di aprile 2018;15/05/2018;3406;0;66;1;Spese correnti;3;Acquisto di beni e servizi;2;Acquisto di servizi;15;Contratti di servizio pubblico;6;Contratti di servizio per le mense scolastiche;15/05/2018
428;1;0;460,32;460,32;Sodexo Italia Spa;64630250F4;ACCONTO Fatt.n. 7400018120  del 30/04/2018 Servizio di sorveglianza refettorio mese di aprile 2018;15/05/2018;3406;0;68;1;Spese correnti;3;Acquisto di beni e servizi;2;Acquisto di servizi;15;Contratti di servizio pubblico;6;Contratti di servizio per le mense scolastiche;15/05/2018
429;1;0;29,58;29,58;Sodexo Italia Spa;64630250F4;SALDO Fatt.n. 7400018120  del 30/04/2018 Servizio di sorveglianza refettorio mese di aprile 2018;15/05/2018;3406;0;154;1;Spese correnti;3;Acquisto di beni e servizi;2;Acquisto di servizi;15;Contratti di servizio pubblico;6;Contratti di servizio per le mense scolastiche;15/05/2018
430;1;0;52,65;52,65;Busitalia Veneto spa; ;SALDO Fatt.n. 8121000216  del 24/04/2018 Quota abbonamento 1' trimestre 2018;15/05/2018;6935;0;148;1;Spese correnti;4;Trasferimenti correnti;2;Trasferimenti correnti a Famiglie;5;Altri trasferimenti a famiglie;999;Altri trasferimenti a famiglie n.a.c.;15/05/2018
431;1;0;750;750;"CASA DI RIPOSO ""A. SIMIONATI"""; ;SALDO Fatt.n. 51/E  del 30/04/2018 Quota retta ricovero R.R. mese di aprile 2018;15/05/2018;6875;0;15;1;Spese correnti;3;Acquisto di beni e servizi;2;Acquisto di servizi;99;Altri servizi;999;Altri servizi diversi n.a.c.;15/05/2018
432;1;0;610;610;MAGGIOLI S.P.A.;Z2022CC968;SALDO Fatt.n. 0002118395  del 27/04/2018 Servizio circolari Enti Online anno 2018 (Ragioneria, personale, Tributi, UTC);15/05/2018;550;0;103;1;Spese correnti;3;Acquisto di beni e servizi;1;Acquisto di beni;1;Giornali, riviste e pubblicazioni;1;Giornali e riviste;15/05/2018
433;1;0;6.344,00;6.344,00;ACCATRE S.r.l.;Z721F3CB95;SALDO Fatt.n. 1/180733  del 11/05/2018 Convenzione per servizio di conservazione ed amministrazione digitale anno 2018;15/05/2018;555;0;242;1;Spese correnti;3;Acquisto di beni e servizi;2;Acquisto di servizi;19;Servizi informatici e di telecomunicazioni;1;Gestione e manutenzione applicazioni;15/05/2018
434;1;0;1.677,38;3.378,38;CODESS SOCIALE;684143311D;ACCONTO Fatt.n. 2613/PA  del 10/05/2018 PRESTAZIONI SOCIO SANITARIE-SERVIZIO DI ASSISTENZA SOCIALE E DOMICILIARE MARZO 2018;15/05/2018;6980;0;435;1;Spese correnti;3;Acquisto di beni e servizi;2;Acquisto di servizi;15;Contratti di servizio pubblico;9;Contratti di servizio di assistenza sociale domiciliare;15/05/2018
434;2;0;1.701,00;3.378,38;CODESS SOCIALE;684143311D;ACCONTO Fatt.n. 2612/PA  del 10/05/2018 PRESTAZIONI SOCIO SANITARIE-SERVIZIO DI ASSISTENZA SOCIALE E DOMICILIARE MESE DI FEBBRAIO 2018;15/05/2018;6980;0;435;1;Spese correnti;3;Acquisto di beni e servizi;2;Acquisto di servizi;15;Contratti di servizio pubblico;9;Contratti di servizio di assistenza sociale domiciliare;15/05/2018
435;1;0;2.653,35;5.765,55;CODESS SOCIALE;684143311D;SALDO Fatt.n. 2612/PA  del 10/05/2018 PRESTAZIONI SOCIO SANITARIE-SERVIZIO DI ASSISTENZA SOCIALE E DOMICILIARE MESE DI FEBBRAIO 2018;15/05/2018;6990;0;436;1;Spese correnti;3;Acquisto di beni e servizi;2;Acquisto di servizi;15;Contratti di servizio pubblico;9;Contratti di servizio di assistenza sociale domiciliare;15/05/2018
435;2;0;3.112,20;5.765,55;CODESS SOCIALE;684143311D;SALDO Fatt.n. 2613/PA  del 10/05/2018 PRESTAZIONI SOCIO SANITARIE-SERVIZIO DI ASSISTENZA SOCIALE E DOMICILIARE MARZO 2018;15/05/2018;6990;0;436;1;Spese correnti;3;Acquisto di beni e servizi;2;Acquisto di servizi;15;Contratti di servizio pubblico;9;Contratti di servizio di assistenza sociale domiciliare;15/05/2018
436;1;0;159,96;159,96;PILO SNC;Z641F2729B;SALDO Fatt.n. 4/E  del 30/04/2018 Servizio sostitutivo mensa dipendenti mese di aprile 2018;15/05/2018;9375;0;206;1;Spese correnti;3;Acquisto di beni e servizi;2;Acquisto di servizi;99;Altri servizi;999;Altri servizi diversi n.a.c.;15/05/2018
437;1;0;1.045,00;1.045,00;ZEFIRO SRL;Z3D1A45638;ACCONTO Fatt.n. 16/PA  del 30/04/2018 Servizio di pulizia edifici comunali MESE di APRILE 2018;15/05/2018;475;0;393;1;Spese correnti;3;Acquisto di beni e servizi;2;Acquisto di servizi;99;Altri servizi;999;Altri servizi diversi n.a.c.;15/05/2018
438;1;0;262,18;262,18;ZEFIRO SRL;Z3D1A45638;ACCONTO Fatt.n. 16/PA  del 30/04/2018 Servizio di pulizia edifici comunali MESE di APRILE 2018;15/05/2018;2973;0;394;1;Spese correnti;3;Acquisto di beni e servizi;2;Acquisto di servizi;99;Altri servizi;999;Altri servizi diversi n.a.c.;15/05/2018
439;1;0;294,75;294,75;ZEFIRO SRL;Z3D1A45638;ACCONTO Fatt.n. 16/PA  del 30/04/2018 Servizio di pulizia edifici comunali MESE di APRILE 2018;15/05/2018;37601;0;395;1;Spese correnti;3;Acquisto di beni e servizi;2;Acquisto di servizi;99;Altri servizi;999;Altri servizi diversi n.a.c.;15/05/2018
440;1;0;174,85;174,85;ZEFIRO SRL;Z3D1A45638;SALDO Fatt.n. 16/PA  del 30/04/2018 Servizio di pulizia edifici comunali MESE di APRILE 2018;15/05/2018;1400;0;396;1;Spese correnti;3;Acquisto di beni e servizi;2;Acquisto di servizi;9;Manutenzione ordinaria e riparazioni;8;Manutenzione ordinaria e riparazioni di beni immobili;15/05/2018
441;1;0;6.600,00;6.600,00;New Generation s.r.l.;Z45521FFCD;SALDO Fatt.n. 11A  del 23/04/2018 Manutenzione straordinaria impianto elettrico impianto sportivo comunale;15/05/2018;11631;0;188;2;Spese in conto capitale;2;Investimenti fissi lordi e acquisto di terreni;1;Beni materiali;9;Beni immobili;16;Impianti sportivi;15/05/2018
442;1;0;13.323,94;13.323,94;DE VIZIA TRANSFER S.P.A.;6848933E4B;SALDO Fatt.n. V3-30501  del 30/04/2018 Servizio raccolta rifiuti mese di aprile 2018;15/05/2018;5780;0;18;1;Spese correnti;3;Acquisto di beni e servizi;2;Acquisto di servizi;15;Contratti di servizio pubblico;4;Contratti di servizio per la raccolta rifiuti;15/05/2018
443;1;0;1.207,80;1.207,80;LAZZARINI LORIS;ZA1233EB7E;SALDO Fatt.n. FATTPA 3_18  del 08/05/2018 Riparazione recinzione monumento ai caduti Piazza Liberazione;15/05/2018;1302;0;137;1;Spese correnti;3;Acquisto di beni e servizi;2;Acquisto di servizi;9;Manutenzione ordinaria e riparazioni;8;Manutenzione ordinaria e riparazioni di beni immobili;15/05/2018
444;1;0;125,66;125,66;AUTOFFICINA ELETTRAUTO BARBIERO SNC DI BARBIERO ETTORE;Z842339F0B;ACCONTO Fatt.n. 1/01  del 28/04/2018 Riparazione veicolo  Multijet targa DH568NN e rasaerba;15/05/2018;570;0;133;1;Spese correnti;3;Acquisto di beni e servizi;1;Acquisto di beni;2;Altri beni di consumo;2;Carburanti, combustibili e lubrificanti;15/05/2018
445;1;0;302,13;302,13;AUTOFFICINA ELETTRAUTO BARBIERO SNC DI BARBIERO ETTORE;Z842339F0B;SALDO Fatt.n. 1/01  del 28/04/2018 Riparazione veicolo  Multijet targa DH568NN e rasaerba;15/05/2018;572;0;132;1;Spese correnti;3;Acquisto di beni e servizi;2;Acquisto di servizi;9;Manutenzione ordinaria e riparazioni;1;Manutenzione ordinaria e riparazioni di mezzi di trasporto ad uso civile, di sicurezza e ordine pubblico;15/05/2018
446;1;0;1.500,00;1.500,00;CONSORZIO BIBLIOTECHE PADOVANE ASSOCIATE; ;Servizio acquisto centralizzato di libri per la Biblioteca Comunale - A.L AC N. 100 DEL 09.05.2018;15/05/2018;3760;0;150;1;Spese correnti;3;Acquisto di beni e servizi;2;Acquisto di servizi;99;Altri servizi;999;Altri servizi diversi n.a.c.;15/05/2018
447;1;0;120;120;STRADA DEL VINO COLLI EUGANEI; ;Quota associativa anno 2018 - a.l. AC n. 99 del 09.05.2018;15/05/2018;580;0;149;1;Spese correnti;4;Trasferimenti correnti;1;Trasferimenti correnti a Amministrazioni Pubbliche;2;Trasferimenti correnti a Amministrazioni Locali;999;Trasferimenti correnti a altre Amministrazioni Locali n.a.c.;15/05/2018
448;1;0;310;310;A.N.U.S.C.A.; ;Quota associativa ANUSCA anno 2018 (quota tipo D) - A.L. AC N. 96 DEL 08.05.2018;15/05/2018;580;0;152;1;Spese correnti;4;Trasferimenti correnti;1;Trasferimenti correnti a Amministrazioni Pubbliche;2;Trasferimenti correnti a Amministrazioni Locali;999;Trasferimenti correnti a altre Amministrazioni Locali n.a.c.;15/05/2018
449;1;0;756;756;Ass. SPORT SOLIDALE S.S.D. a R.L.; ;Contributo per trasporto partecipanti al progetto di attivita motoria in acque termali per adulti over 50 anno 2017 - a.c. N. 98 DEL 08.05.2018;15/05/2018;6950;0;381;1;Spese correnti;3;Acquisto di beni e servizi;2;Acquisto di servizi;99;Altri servizi;999;Altri servizi diversi n.a.c.;15/05/2018
450;1;0;171,36;171,36;Ass. SPORT SOLIDALE S.S.D. a R.L.; ;Saldo contributo per trasporto dei partecipanti al corso di attivita motoria in acqua termale - Anno 2017/2018 - A.L. AC N. 98 DEL 08.05.2018;15/05/2018;6950;0;151;1;Spese correnti;3;Acquisto di beni e servizi;2;Acquisto di servizi;99;Altri servizi;999;Altri servizi diversi n.a.c.;15/05/2018
451;1;0;68.455,42;68.455,42;AZIENDA ULSS N. 6 EUGANEA - AREA DISTRETTUALE 5; ;Quota pro-capite per attivita socio-assistenziali territoriali anno 2018 - a.l. AC N. 97 DEL 08.05.2018;15/05/2018;7135;0;153;1;Spese correnti;4;Trasferimenti correnti;1;Trasferimenti correnti a Amministrazioni Pubbliche;2;Trasferimenti correnti a Amministrazioni Locali;20;Trasferimenti correnti a Aziende sanitarie locali  a titolo di finanziamento del servizio sanitario nazionale;15/05/2018
452;1;0;4.169,00;4.169,00;COOPERATIVA SOCIALE SERVIZI ASSOCIATI;7079166895;SALDO Fatt.n. D-175  del 30/04/2018 Servizio di trasporto scolastico mese di aprile 2018;15/05/2018;3413;0;279;1;Spese correnti;3;Acquisto di beni e servizi;2;Acquisto di servizi;15;Contratti di servizio pubblico;2;Contratti di servizio di trasporto scolastico;15/05/2018
453;1;0;9,97;59,71;Acquevenete Spa;Z311381BD7;SALDO Fatt.n. BEB18-0000922  del 07/02/2018 Fornitura acqua potabile utenza Via Carducci conguaglio periodo dal 01.05.2017 al 31.12.2017;16/05/2018;1350;0;60;1;Spese correnti;3;Acquisto di beni e servizi;2;Acquisto di servizi;5;Utenze e canoni;5;Acqua;16/05/2018
453;2;0;11,54;59,71;Acquevenete Spa;Z311381BD7;SALDO Fatt.n. BEB18-0000920  del 07/02/2018 Fornitura acqua potabile utenza Via Vasche conguaglio periodo dal 01.06.2017 al 31.12.2017;16/05/2018;1350;0;60;1;Spese correnti;3;Acquisto di beni e servizi;2;Acquisto di servizi;5;Utenze e canoni;5;Acqua;16/05/2018
453;3;0;11,54;59,71;Acquevenete Spa;Z311381BD7;SALDO Fatt.n. BEB18-0000919  del 07/02/2018 Fornitura acqua potabile utenza Via Vo Di Sotto conguaglio periodo dal 01.06.2017 al 31.12.2017;16/05/2018;1350;0;60;1;Spese correnti;3;Acquisto di beni e servizi;2;Acquisto di servizi;5;Utenze e canoni;5;Acqua;16/05/2018
453;4;0;26,66;59,71;Acquevenete Spa;Z311381BD7;SALDO Fatt.n. BEB18-0000923  del 07/02/2018 Fornitura acqua potabile utenza Via 4 Novembre conguaglio periodo dal 01.06.2017 al 31.12.2017;16/05/2018;1350;0;60;1;Spese correnti;3;Acquisto di beni e servizi;2;Acquisto di servizi;5;Utenze e canoni;5;Acqua;16/05/2018
454;1;0;15,92;42,58;Acquevenete Spa;Z311381BD7;SALDO Fatt.n. BEB18-0000908  del 07/02/2018 Fornitura acqua potabile utenza cimitero Cortela' periodo dal 01.05.2017 al 31.12.2017;16/05/2018;51801;0;56;1;Spese correnti;3;Acquisto di beni e servizi;2;Acquisto di servizi;5;Utenze e canoni;5;Acqua;16/05/2018
454;2;0;26,66;42,58;Acquevenete Spa;Z311381BD7;SALDO Fatt.n. BEB18-0000907  del 07/02/2018 Fornitura acqua potabile utenza cimitero Zovon periodo dal 01.06.2017 al 31.12.2017;16/05/2018;51801;0;56;1;Spese correnti;3;Acquisto di beni e servizi;2;Acquisto di servizi;5;Utenze e canoni;5;Acqua;16/05/2018
455;1;0;41,32;41,32;Acquevenete Spa;Z311381BD7;SALDO Fatt.n. BEB18-0000909  del 07/02/2018 Fornitura acqua potabile utenza Sede Municipale conguaglio periodo dal 01.05.2017 al 31.12.2017;16/05/2018;4751;0;50;1;Spese correnti;3;Acquisto di beni e servizi;2;Acquisto di servizi;5;Utenze e canoni;5;Acqua;16/05/2018
456;1;0;25,49;25,49;Acquevenete Spa;Z311381BD7;SALDO Fatt.n. BEB18-0000912  del 07/02/2018 Fornitura acqua potabile utenza magazzino comunale conguaglio periodo dal 01.05.2018 al 31.12.2017;16/05/2018;1450;0;57;1;Spese correnti;3;Acquisto di beni e servizi;2;Acquisto di servizi;5;Utenze e canoni;5;Acqua;16/05/2018
457;1;0;68,33;68,33;Acquevenete Spa;Z311381BD7;SALDO Fatt.n. BEB18-0000906  del 07/02/2018 Fornitura acqua potabile utenza ex scuola Zovon conguaglio periodo dal 01.07.2016 al 31.12.2017;16/05/2018;1330;0;54;1;Spese correnti;3;Acquisto di beni e servizi;2;Acquisto di servizi;5;Utenze e canoni;5;Acqua;16/05/2018
479;1;0;275,7;275,7;Acquevenete Spa;Z311381BD7;ACCONTO Fatt.n. BEB18-0000913  del 07/02/2018 Fornitura acqua potabile utenza Polo Scolastico (contatore BE01176500) periodo dal 01.05.2017 al 31.12.2017;22/05/2018;28001;0;51;1;Spese correnti;3;Acquisto di beni e servizi;2;Acquisto di servizi;5;Utenze e canoni;5;Acqua;22/05/2018
480;1;0;73,51;73,51;Acquevenete Spa;Z311381BD7;ACCONTO Fatt.n. BEB18-0000913  del 07/02/2018 Fornitura acqua potabile utenza Polo Scolastico (contatore BE01176500) periodo dal 01.05.2017 al 31.12.2017;22/05/2018;29701;0;52;1;Spese correnti;3;Acquisto di beni e servizi;2;Acquisto di servizi;5;Utenze e canoni;5;Acqua;22/05/2018
481;1;0;165,6;165,6;Acquevenete Spa;Z311381BD7;SALDO Fatt.n. BEB18-0000913  del 07/02/2018 Fornitura acqua potabile utenza Polo Scolastico (contatore BE01176500) periodo dal 01.05.2017 al 31.12.2017;22/05/2018;31801;0;53;1;Spese correnti;3;Acquisto di beni e servizi;2;Acquisto di servizi;5;Utenze e canoni;5;Acqua;22/05/2018
482;1;0;14,51;37,92;Acquevenete Spa;Z311381BD7;SALDO Fatt.n. BEB18-0000914  del 07/02/2018 Fornitura acqua potabile utenza cimitero Vo  Vecchio periodo dal 01.06.2017 al 31.12.2017;22/05/2018;51801;0;56;1;Spese correnti;3;Acquisto di beni e servizi;2;Acquisto di servizi;5;Utenze e canoni;5;Acqua;22/05/2018
482;2;0;23,41;37,92;Acquevenete Spa;Z311381BD7;SALDO Fatt.n. BEB18-0000911  del 07/02/2018 Fornitura acqua potabile utenza cimitero Boccon periodo dal 01.05.2018 al 31.12.2017;22/05/2018;51801;0;56;1;Spese correnti;3;Acquisto di beni e servizi;2;Acquisto di servizi;5;Utenze e canoni;5;Acqua;22/05/2018
483;1;0;14,05;14,05;Acquevenete Spa;Z311381BD7;SALDO Fatt.n. BEB18-0000917  del 07/02/2018 Fornitura acqua potabile utenza Fontanella pubblica Piazza Santimaria periodo 01.06.2017 al 31.12.2017;22/05/2018;1350;0;60;1;Spese correnti;3;Acquisto di beni e servizi;2;Acquisto di servizi;5;Utenze e canoni;5;Acqua;22/05/2018
484;1;0;201,04;201,04;Acquevenete Spa;Z311381BD7;ACCONTO Fatt.n. BEB18-0000924  del 07/02/2018 Fornitura acqua potabile utenza Polo Scolastico (contatore 802227-14) conguaglio periodo dal 01.07.2016 al 31.12.2017;22/05/2018;29701;0;52;1;Spese correnti;3;Acquisto di beni e servizi;2;Acquisto di servizi;5;Utenze e canoni;5;Acqua;22/05/2018
485;1;0;224,62;224,62;Acquevenete Spa; ;SALDO Fatt.n. BEB18-0000924  del 07/02/2018 Fornitura acqua potabile utenza Polo Scolastico (contatore 802227-14) conguaglio periodo dal 01.07.2016 al 31.12.2017;22/05/2018;31801;0;51;1;Spese correnti;3;Acquisto di beni e servizi;2;Acquisto di servizi;5;Utenze e canoni;5;Acqua;22/05/2018
486;1;0;19,65;19,65;Acquevenete Spa;Z311381BD7;SALDO Fatt.n. BEB18-0000910  del 07/02/2018 Fornitura acqua potabile utenza ex scuola Vo Vecchio periodo dal 01.06.2017 al 31.12.2017;22/05/2018;1330;0;54;1;Spese correnti;3;Acquisto di beni e servizi;2;Acquisto di servizi;5;Utenze e canoni;5;Acqua;22/05/2018
487;1;0;201,3;1.655,59;FLOWER GLOVES srl Unipersonale;ZD02123263;SALDO Fatt.n. PA0151  del 30/04/2018 Fornitura vestiario a personale operaio;22/05/2018;765;0;390;1;Spese correnti;3;Acquisto di beni e servizi;1;Acquisto di beni;2;Altri beni di consumo;4;Vestiario;22/05/2018
487;2;0;1.454,29;1.655,59;FLOWER GLOVES srl Unipersonale;ZD02123263;SALDO Fatt.n. PA0627  del 29/12/2017 Fornitura vestiario a personale operaio;22/05/2018;765;0;390;1;Spese correnti;3;Acquisto di beni e servizi;1;Acquisto di beni;2;Altri beni di consumo;4;Vestiario;22/05/2018
489;1;0;577;577;MAGAZZINI AMBROSI S.A.S. DI AMBROSI FABIO E TIZIANA;ZC91E16A38;SALDO Fatt.n. 9  del 17/05/2018 Fornitura materiale da ferramenta per lavori in economia;22/05/2018;1300;0;38;1;Spese correnti;3;Acquisto di beni e servizi;1;Acquisto di beni;2;Altri beni di consumo;999;Altri beni e materiali di consumo n.a.c.;22/05/2018
490;1;0;158,06;158,06;Illumia S.p.A.;Z0E14167CF;ACCONTO Fatt.n. 2807-PE  del 20/04/2018 Fornitura energia elettrica utenza impianto sportivo Via Marconi COD POD IT001E04020221 conguaglio 2017  -  provv. 71;25/05/2018;64981;0;376;1;Spese correnti;3;Acquisto di beni e servizi;2;Acquisto di servizi;5;Utenze e canoni;4;Energia elettrica;25/05/2018
491;1;0;298,5;298,5;Illumia S.p.A.;Z0E14167CF;SALDO Fatt.n. 2807-PE  del 20/04/2018 Fornitura energia elettrica utenza impianto sportivo Via Marconi COD POD IT001E04020221 mese di marzo 2018  -  provv. 71;25/05/2018;64981;0;185;1;Spese correnti;3;Acquisto di beni e servizi;2;Acquisto di servizi;5;Utenze e canoni;4;Energia elettrica;25/05/2018
492;1;0;89,99;8.606,20;Illumia S.p.A.;Z0E14167CF;SALDO Fatt.n. 2470-PE  del 20/04/2018 Fornitura energia elettrica utenza ill. pubb. Piazzetta Martiri (POD IT001E04199192) periodo febbraio / marzo 2018  -  provv. 76;25/05/2018;7420;0;89;1;Spese correnti;3;Acquisto di beni e servizi;2;Acquisto di servizi;5;Utenze e canoni;4;Energia elettrica;25/05/2018
492;2;0;148,32;8.606,20;Illumia S.p.A.;Z0E14167CF;SALDO Fatt.n. 2476-PE  del 20/04/2018 Fornitura energia elettrica torretta Piazzetta Spolverato mese di marzo 2018  -  provv. 84;25/05/2018;7420;0;89;1;Spese correnti;3;Acquisto di beni e servizi;2;Acquisto di servizi;5;Utenze e canoni;4;Energia elettrica;25/05/2018
492;3;0;214,63;8.606,20;Illumia S.p.A.;Z0E14167CF;SALDO Fatt.n. 2806-PE  del 20/04/2018 Fornitura energia elettrica utenza lottizzazione Canaletto periodo febbraio / marzo 2018  -  provv. 70;25/05/2018;7420;0;89;1;Spese correnti;3;Acquisto di beni e servizi;2;Acquisto di servizi;5;Utenze e canoni;4;Energia elettrica;25/05/2018
492;4;0;8.153,26;8.606,20;Illumia S.p.A.;Z0E14167CF;SALDO Fatt.n. 2803-PE  del 20/04/2018 Fornitura energia elettrica utenze ill. pubblica periodo febbraio / marzo 2018  -  provv.  68;25/05/2018;7420;0;89;1;Spese correnti;3;Acquisto di beni e servizi;2;Acquisto di servizi;5;Utenze e canoni;4;Energia elettrica;25/05/2018
493;1;0;101,19;101,19;Illumia S.p.A.;Z0E14167CF;SALDO Fatt.n. 2805-PE  del 20/04/2018 Fornitura energia elettrica utenza ex scuola Zovon periodo febbraio / marzo 2018  -  provv. 69;25/05/2018;1330;0;84;1;Spese correnti;3;Acquisto di beni e servizi;2;Acquisto di servizi;5;Utenze e canoni;4;Energia elettrica;25/05/2018
494;1;0;187,4;187,4;Illumia S.p.A.;Z0E14167CF;SALDO Fatt.n. 2473-PE  del 20/04/2018 Fornitura energia elettrica utenza impianto sporivo Zovon mese di marzo 2018  -  provv. 81;25/05/2018;64981;0;142;1;Spese correnti;3;Acquisto di beni e servizi;2;Acquisto di servizi;5;Utenze e canoni;4;Energia elettrica;25/05/2018
495;1;0;439,64;439,64;Illumia S.p.A.;Z0E14167CF;ACCONTO Fatt.n. 2467-PE  del 20/04/2018 Fornitura energia elettrica utenza Polo Scolastico mese di marzo 2018  -  provv. 75;25/05/2018;28001;0;81;1;Spese correnti;3;Acquisto di beni e servizi;2;Acquisto di servizi;5;Utenze e canoni;4;Energia elettrica;25/05/2018
496;1;0;439,64;439,64;Illumia S.p.A.;Z0E14167CF;ACCONTO Fatt.n. 2467-PE  del 20/04/2018 Fornitura energia elettrica utenza Polo Scolastico mese di marzo 2018  -  provv. 75;25/05/2018;29701;0;82;1;Spese correnti;3;Acquisto di beni e servizi;2;Acquisto di servizi;5;Utenze e canoni;4;Energia elettrica;25/05/2018
497;1;0;439,63;439,63;Illumia S.p.A.;Z0E14167CF;SALDO Fatt.n. 2467-PE  del 20/04/2018 Fornitura energia elettrica utenza Polo Scolastico mese di marzo 2018  -  provv. 75;25/05/2018;31801;0;83;1;Spese correnti;3;Acquisto di beni e servizi;2;Acquisto di servizi;5;Utenze e canoni;4;Energia elettrica;25/05/2018
498;1;0;214,61;214,61;Illumia S.p.A.;Z0E14167CF;SALDO Fatt.n. 2809-PE  del 20/04/2018 Fornitura energia elettrica utenza magazzino periodo febbraio / marzo 2018  -  provv. 73;25/05/2018;1450;0;86;1;Spese correnti;3;Acquisto di beni e servizi;2;Acquisto di servizi;5;Utenze e canoni;4;Energia elettrica;25/05/2018
499;1;0;529,52;529,52;Illumia S.p.A.;Z0E14167CF;SALDO Fatt.n. 2474-PE  del 20/04/2018 Fornitura energia elettrica utenza Sede Municipale mese di marzo 2018  -  provv. 82;25/05/2018;4751;0;80;1;Spese correnti;3;Acquisto di beni e servizi;2;Acquisto di servizi;5;Utenze e canoni;4;Energia elettrica;25/05/2018
500;1;0;379,05;379,05;Illumia S.p.A.;Z0E14167CF;SALDO Fatt.n. 2471-PE  del 20/04/2018 Fornitura energia elettrica utenza immobile Piazzetta Martiri mese di marzo 2018  -  provv. 79;25/05/2018;1405;0;88;1;Spese correnti;3;Acquisto di beni e servizi;2;Acquisto di servizi;5;Utenze e canoni;4;Energia elettrica;25/05/2018
501;1;0;73,83;594,86;Illumia S.p.A.;Z0E14167CF;SALDO Fatt.n. 2466-PE  del 20/04/2018 Fornitura energia elettrica utenza Villa Venier  (POD IT001E04020269) periodo febbraio / marzo 2018  -  provv. 74;25/05/2018;1312;0;87;1;Spese correnti;3;Acquisto di beni e servizi;2;Acquisto di servizi;5;Utenze e canoni;4;Energia elettrica;25/05/2018
501;2;0;89,99;594,86;Illumia S.p.A.;Z0E14167CF;SALDO Fatt.n. 2475-PE  del 20/04/2018 Fornitura energia elettrica utenza Villa Venier (POD IT001E04020273) periodo febbraio / marzo 2018  -  provv. 83;25/05/2018;1312;0;87;1;Spese correnti;3;Acquisto di beni e servizi;2;Acquisto di servizi;5;Utenze e canoni;4;Energia elettrica;25/05/2018
501;3;0;431,04;594,86;Illumia S.p.A.;Z0E14167CF;SALDO Fatt.n. 2472-PE  del 20/04/2018 Fornitura energia elettrica utenza Villa Venier (POD IT001E34674161) mese di marzo 2018  -  provv. 87;25/05/2018;1312;0;87;1;Spese correnti;3;Acquisto di beni e servizi;2;Acquisto di servizi;5;Utenze e canoni;4;Energia elettrica;25/05/2018
502;1;0;72,76;235,51;Illumia S.p.A.;Z0E14167CF;SALDO Fatt.n. 2469-PE  del 20/04/2018 Fornitura energia elettrica utenza Villa Venier (POD IT001E35511792) periodo febbraio / marzo 2018  -   provv. 77;25/05/2018;1312;0;147;1;Spese correnti;3;Acquisto di beni e servizi;2;Acquisto di servizi;5;Utenze e canoni;4;Energia elettrica;25/05/2018
502;2;0;72,76;235,51;Illumia S.p.A.;Z0E14167CF;SALDO Fatt.n. 2808-PE  del 20/04/2018 Fornitura energia elettrica utenza Villa Venier (POD IT001E35511782) conguaglio febbraio / marzo 2018  -  provv. 72;25/05/2018;1312;0;147;1;Spese correnti;3;Acquisto di beni e servizi;2;Acquisto di servizi;5;Utenze e canoni;4;Energia elettrica;25/05/2018
502;3;0;89,99;235,51;Illumia S.p.A.;Z0E14167CF;SALDO Fatt.n. 2468-PE  del 20/04/2018 Fornitura energia elettrica utenza Villa Venier (POD IT001E04020277) conguaglio febbraio / marzo 2018  -  provv. 78;25/05/2018;1312;0;147;1;Spese correnti;3;Acquisto di beni e servizi;2;Acquisto di servizi;5;Utenze e canoni;4;Energia elettrica;25/05/2018
505;1;0;10.628,90;10.628,90;S.E.S.A. SPA;Z11182D6F2;SALDO Fatt.n. 2000656  del 30/04/2018 Smaltimento rifiuti mese di aprile 2018 - A.L. UTC N. 78 DEL 29.05.2018;30/05/2018;5780;0;41;1;Spese correnti;3;Acquisto di beni e servizi;2;Acquisto di servizi;15;Contratti di servizio pubblico;4;Contratti di servizio per la raccolta rifiuti;30/05/2018
506;1;0;510,8;510,8;BOGONI ALFONSO & C. S.A.S.;Z9E1D16AO2;SALDO Fatt.n. V0000004FE  del 30/04/2018 Fornitura carburante mezzi comunali mese di aprile 2018;30/05/2018;570;0;39;1;Spese correnti;3;Acquisto di beni e servizi;1;Acquisto di beni;2;Altri beni di consumo;2;Carburanti, combustibili e lubrificanti;30/05/2018
507;1;0;92,9;92,9;AUTOFFICINA ELETTRAUTO BARBIERO SNC DI BARBIERO ETTORE;Z842339F0B;SALDO Fatt.n. 2/01  del 24/05/2018 Revisione Veicolo Land Rover Defender 110 targa ZA507ZT;30/05/2018;572;0;179;1;Spese correnti;3;Acquisto di beni e servizi;2;Acquisto di servizi;9;Manutenzione ordinaria e riparazioni;1;Manutenzione ordinaria e riparazioni di mezzi di trasporto ad uso civile, di sicurezza e ordine pubblico;30/05/2018
508;1;0;729,07;729,07;Superbeton Spa;Z7522EAC28;SALDO Fatt.n. 590  del 30/04/2018 VENDITE ASFALTO NERVESA;30/05/2018;1300;0;117;1;Spese correnti;3;Acquisto di beni e servizi;1;Acquisto di beni;2;Altri beni di consumo;999;Altri beni e materiali di consumo n.a.c.;30/05/2018
509;1;0;244;244;MAGAZZINI AMBROSI S.A.S. DI AMBROSI FABIO E TIZIANA;Z422386491;ACCONTO Fatt.n. 10  del 21/05/2018 Fornitura materiale da ferramenta e riparazione trattorino rasaerba;30/05/2018;572;0;177;1;Spese correnti;3;Acquisto di beni e servizi;2;Acquisto di servizi;9;Manutenzione ordinaria e riparazioni;1;Manutenzione ordinaria e riparazioni di mezzi di trasporto ad uso civile, di sicurezza e ordine pubblico;30/05/2018
510;1;0;717,95;717,95;MAGAZZINI AMBROSI S.A.S. DI AMBROSI FABIO E TIZIANA;Z422386491;SALDO Fatt.n. 10  del 21/05/2018 Fornitura materiale da ferramenta e riparazione trattorino rasaerba;30/05/2018;1300;0;178;1;Spese correnti;3;Acquisto di beni e servizi;1;Acquisto di beni;2;Altri beni di consumo;999;Altri beni e materiali di consumo n.a.c.;30/05/2018
511;1;0;1.606,50;1.606,50;CODESS SOCIALE;684143311D;ACCONTO Fatt.n. 2805/PA  del 23/05/2018 PRESTAZIONI SOCIO SANITARIE-SERVIZIO DI ASSISTENZA SOCIALE E DOMICILIARE APRILE 2018;30/05/2018;6980;0;435;1;Spese correnti;3;Acquisto di beni e servizi;2;Acquisto di servizi;15;Contratti di servizio pubblico;9;Contratti di servizio di assistenza sociale domiciliare;30/05/2018
512;1;0;2.593,50;2.593,50;CODESS SOCIALE;684143311D;SALDO Fatt.n. 2805/PA  del 23/05/2018 PRESTAZIONI SOCIO SANITARIE-SERVIZIO DI ASSISTENZA SOCIALE E DOMICILIARE APRILE 2018;30/05/2018;6990;0;436;1;Spese correnti;3;Acquisto di beni e servizi;2;Acquisto di servizi;15;Contratti di servizio pubblico;9;Contratti di servizio di assistenza sociale domiciliare;30/05/2018
513;1;0;95,46;95,46;POSTE ITALIANE SPA;Z961438A4F;SALDO Fatt.n. 8718164270  del 22/05/2018 Fattura Elettronica relativa all'Identificativo Rendiconto 2097003726 - mese di marzo 2018;30/05/2018;4800;0;42;1;Spese correnti;3;Acquisto di beni e servizi;2;Acquisto di servizi;16;Servizi amministrativi;2;Spese postali;30/05/2018
515;1;0;887,38;887,38;TREVISAN VANESSA; ;Indennita di carica Sindaco maggio 2018;07/06/2018;10;0;24;1;Spese correnti;3;Acquisto di beni e servizi;2;Acquisto di servizi;1;Organi e incarichi istituzionali dell'amministrazione;1;Organi istituzionali dell'amministrazione - Indennità;07/06/2018
516;1;0;177,48;177,48;CALAON SIMONE; ;Indennita di carica Vice-Sindaco maggio  2018;07/06/2018;10;0;25;1;Spese correnti;3;Acquisto di beni e servizi;2;Acquisto di servizi;1;Organi e incarichi istituzionali dell'amministrazione;1;Organi istituzionali dell'amministrazione - Indennità;07/06/2018
517;1;0;266,21;266,21;ZAVATTIERO AGOSTINO; ;Indennita di carica Assessore maggio 2018;07/06/2018;10;0;28;1;Spese correnti;3;Acquisto di beni e servizi;2;Acquisto di servizi;1;Organi e incarichi istituzionali dell'amministrazione;1;Organi istituzionali dell'amministrazione - Indennità;07/06/2018
518;1;0;266,21;266,21;SANTIMARIA ANDREA; ;Indennita di carica Assessore maggio 2018;07/06/2018;10;0;26;1;Spese correnti;3;Acquisto di beni e servizi;2;Acquisto di servizi;1;Organi e incarichi istituzionali dell'amministrazione;1;Organi istituzionali dell'amministrazione - Indennità;07/06/2018
519;1;0;133,11;133,11;LAZZARETTO ROBERTA; ;Indennita di carica Assessore maggio 2018;07/06/2018;10;0;27;1;Spese correnti;3;Acquisto di beni e servizi;2;Acquisto di servizi;1;Organi e incarichi istituzionali dell'amministrazione;1;Organi istituzionali dell'amministrazione - Indennità;07/06/2018
520;1;0;102,98;102,98;LAZZARETTO ROBERTA; ;Rimborso per spese di viaggio a Lazzaretto Roberta mese di  maggio 2018;07/06/2018;230;0;33;1;Spese correnti;3;Acquisto di beni e servizi;2;Acquisto di servizi;1;Organi e incarichi istituzionali dell'amministrazione;2;Organi istituzionali dell'amministrazione - Rimborsi;07/06/2018
523;1;0;150;150;OMESSO NOMINATIVO NEL RISPETTO DELLA NORMATIVA SULLA PROTEZIONE DATI PERSONALI; ;Erogazione contributi economici giugno 2018 - A.L. AC N. 87 DEL 24.04.2018;07/06/2018;6935;0;131;1;Spese correnti;4;Trasferimenti correnti;2;Trasferimenti correnti a Famiglie;5;Altri trasferimenti a famiglie;999;Altri trasferimenti a famiglie n.a.c.;07/06/2018
524;1;0;597,8;597,8;MAGGIOLI S.P.A.;Z2022CC968;SALDO Fatt.n. 0002122356  del 23/05/2018 Abbonamento modulistica armonizzazione contabile e personale anno 2018;07/06/2018;445;0;105;1;Spese correnti;3;Acquisto di beni e servizi;2;Acquisto di servizi;4;Acquisto di servizi per formazione e addestramento del personale dell'ente;999;Acquisto di servizi per altre spese per formazione e addestramento n.a.c.;07/06/2018
527;1;0;657,03;657,03;BARBIN IMPIANTI Srl;Z9A235FA14;SALDO Fatt.n. 43S  del 31/05/2018 Manutenzione straordinaria cimiteri e pubblica illuminazione;07/06/2018;7430;0;175;1;Spese correnti;3;Acquisto di beni e servizi;2;Acquisto di servizi;9;Manutenzione ordinaria e riparazioni;4;Manutenzione ordinaria e riparazioni di impianti e macchinari;07/06/2018
528;1;0;77,57;77,57;Vodafone Italia S.p.A.;ZD11381BD3;ACCONTO Fatt.n. AI09169141  del 23/05/2018 Spese per telefonia mobile per il periodo dal 17.03.2018 al 16.05.2018;11/06/2018;4751;0;119;1;Spese correnti;3;Acquisto di beni e servizi;2;Acquisto di servizi;5;Utenze e canoni;2;Telefonia mobile;11/06/2018
529;1;0;472,37;472,37;Vodafone Italia S.p.A.;Z941E11750;ACCONTO Fatt.n. AI09169141  del 23/05/2018 Spese telefoniche utenze Sede Municipale per il periodo dal 17.03.2018 al 16.05.2018;11/06/2018;4751;0;143;1;Spese correnti;3;Acquisto di beni e servizi;2;Acquisto di servizi;5;Utenze e canoni;1;Telefonia fissa;11/06/2018
530;1;0;97,36;97,36;Vodafone Italia S.p.A.;Z941E11750;ACCONTO Fatt.n. AI09169141  del 23/05/2018 Spese per utenza Villa Venier per il periodo dal 17.03.2018 al 16.05.2018;11/06/2018;1312;0;139;1;Spese correnti;3;Acquisto di beni e servizi;2;Acquisto di servizi;5;Utenze e canoni;1;Telefonia fissa;11/06/2018
531;1;0;85,16;85,16;Vodafone Italia S.p.A.;Z941E11750;ACCONTO Fatt.n. AI09169141  del 23/05/2018 Spese telefoniche utenza Biblioteca per il periodo dal 17.03.2018 al 16.05.2018;11/06/2018;3761;0;144;1;Spese correnti;3;Acquisto di beni e servizi;2;Acquisto di servizi;5;Utenze e canoni;1;Telefonia fissa;11/06/2018
532;1;0;139,08;139,08;Vodafone Italia S.p.A.;Z941E11750;ACCONTO Fatt.n. AI09169141  del 23/05/2018 Spese telefoniche utenza Scuola Infanzia per il periodo dal 17.03.2018 al 16.05.2018;11/06/2018;28001;0;140;1;Spese correnti;3;Acquisto di beni e servizi;2;Acquisto di servizi;5;Utenze e canoni;1;Telefonia fissa;11/06/2018
533;1;0;139,08;139,08;Vodafone Italia S.p.A.;Z941E11750;ACCONTO Fatt.n. AI09169141  del 23/05/2018 Spese telefoniche utenza Scuola Primaria per il periodo dal 17.03.2018 al 16.05.2018;11/06/2018;29701;0;141;1;Spese correnti;3;Acquisto di beni e servizi;2;Acquisto di servizi;5;Utenze e canoni;1;Telefonia fissa;11/06/2018
534;1;0;139,08;139,08;Vodafone Italia S.p.A.;Z941E11750;SALDO Fatt.n. AI09169141  del 23/05/2018 Spese telefoniche utenza Scuola Secondaria primo grado per il periodo dal 17.03.2018 al 16.05.2018;11/06/2018;31801;0;142;1;Spese correnti;3;Acquisto di beni e servizi;2;Acquisto di servizi;5;Utenze e canoni;1;Telefonia fissa;11/06/2018
536;1;0;3,5;3,5;Intesa Sanpaolo S.p.A.; ;Quota interessi finanziamento n. 00/0052147241 rata n. 17 scadenza 30.06.2018;11/06/2018;1309;0;209;1;Spese correnti;7;Interessi passivi;5;Interessi su Mutui e altri finanziamenti a medio lungo termine;4;Interessi passivi su finanziamenti a medio lungo termine a Imprese;999;Interessi passivi a altre imprese su finanziamenti a medio lungo termine;11/06/2018
556;1;0;291,48;291,48;E.ON Energia S.p.a.;Z7113FE6B2;SALDO Fatt.n. 40004348  del 01/06/2018 Fornitura gas naturale utenza Sede Municipale (matricola contatore 1545006563) mese di aprile 2018;19/06/2018;4751;0;60;1;Spese correnti;3;Acquisto di beni e servizi;2;Acquisto di servizi;5;Utenze e canoni;6;Gas;19/06/2018
557;1;0;179,33;179,33;E.ON Energia S.p.a.;Z7113FE6B2;SALDO Fatt.n. 40004374  del 01/06/2018 Fornitura gas naturale utenza Villa Venier mese di aprile 2018;19/06/2018;1312;0;64;1;Spese correnti;3;Acquisto di beni e servizi;2;Acquisto di servizi;5;Utenze e canoni;6;Gas;19/06/2018
558;1;0;367,11;367,11;E.ON Energia S.p.a.;Z7113FE6B2;ACCONTO Fatt.n. 40004349  del 01/06/2018 Fornitura gas naturale utenza Polo Scolastico mese di aprile 2018;19/06/2018;28001;0;61;1;Spese correnti;3;Acquisto di beni e servizi;2;Acquisto di servizi;5;Utenze e canoni;6;Gas;19/06/2018
559;1;0;367,11;367,11;E.ON Energia S.p.a.; ;ACCONTO Fatt.n. 40004349  del 01/06/2018 Fornitura gas naturale utenza Polo Scolastico mese di aprile 2018;19/06/2018;29701;0;62;1;Spese correnti;3;Acquisto di beni e servizi;2;Acquisto di servizi;5;Utenze e canoni;6;Gas;19/06/2018
560;1;0;367,12;367,12;E.ON Energia S.p.a.; ;SALDO Fatt.n. 40004349  del 01/06/2018 Fornitura gas naturale utenza Polo Scolastico mese di aprile 2018;19/06/2018;31801;0;63;1;Spese correnti;3;Acquisto di beni e servizi;2;Acquisto di servizi;5;Utenze e canoni;6;Gas;19/06/2018
561;1;0;823,44;823,44;E.ON Energia S.p.a.;Z7113FE6B2;SALDO Fatt.n. 40004350  del 01/06/2018 Fornitura gas naturale Immobile Piazzetta Martiri periodo dal 28.03.2018 al 26.04.2018;19/06/2018;1405;0;59;1;Spese correnti;3;Acquisto di beni e servizi;2;Acquisto di servizi;5;Utenze e canoni;6;Gas;19/06/2018
562;1;0;141,52;650,38;Illumia S.p.A.; ;SALDO Fatt.n. 3431-PE  del 18/05/2018 Fornitura energia elettrica utenza impianto sportivo Zovon mese di aprile 2018  -  provv. 90;21/06/2018;64981;0;219;1;Spese correnti;3;Acquisto di beni e servizi;2;Acquisto di servizi;5;Utenze e canoni;4;Energia elettrica;21/06/2018
562;2;0;508,86;650,38;Illumia S.p.A.; ;SALDO Fatt.n. 3759-PE  del 18/05/2018 Fornitura energia elettrica utenza Impianto Sportivo Via Marconi mese di aprile 2018  -  provv. 95;21/06/2018;64981;0;219;1;Spese correnti;3;Acquisto di beni e servizi;2;Acquisto di servizi;5;Utenze e canoni;4;Energia elettrica;21/06/2018
563;1;0;167,97;3.658,39;Illumia S.p.A.;Z0E14167CF;SALDO Fatt.n. 3433-PE  del 18/05/2018 Fornitura energia elettrica utenza Piazzetta Spolverato mese di aprile 2018 -  provv. 92;21/06/2018;7420;0;171;1;Spese correnti;3;Acquisto di beni e servizi;2;Acquisto di servizi;5;Utenze e canoni;4;Energia elettrica;21/06/2018
563;2;0;361,24;3.658,39;Illumia S.p.A.;Z0E14167CF;SALDO Fatt.n. 3758-PE  del 18/05/2018 Fornitura energia elettrica utenza ill. pubblica Piazzetta Martiri (POD IT001E32268714) mese di aprile 2018  -  provv. 94;21/06/2018;7420;0;171;1;Spese correnti;3;Acquisto di beni e servizi;2;Acquisto di servizi;5;Utenze e canoni;4;Energia elettrica;21/06/2018
563;3;0;3.129,18;3.658,39;Illumia S.p.A.;Z0E14167CF;SALDO Fatt.n. 3757-PE  del 18/05/2018 Fornitura energia elettrica utenze illuminazione pubblica mese di aprile 2018  -  provv. 93;21/06/2018;7420;0;171;1;Spese correnti;3;Acquisto di beni e servizi;2;Acquisto di servizi;5;Utenze e canoni;4;Energia elettrica;21/06/2018
564;1;0;315,02;315,02;Illumia S.p.A.;Z0E14167CF;SALDO Fatt.n. 3429-PE  del 18/05/2018 Fornitura energia elettrica utenza Immobile Piazzetta Martiri mese di aprile 2018  -  provv. 88;21/06/2018;1405;0;170;1;Spese correnti;3;Acquisto di beni e servizi;2;Acquisto di servizi;5;Utenze e canoni;4;Energia elettrica;21/06/2018
565;1;0;217,31;217,31;Illumia S.p.A.;Z0E14167CF;SALDO Fatt.n. 3430-PE  del 18/05/2018 Fornitura energia elettrica utenza Villa Venier mese di aprile 2018  -  provv. 89;21/06/2018;1312;0;147;1;Spese correnti;3;Acquisto di beni e servizi;2;Acquisto di servizi;5;Utenze e canoni;4;Energia elettrica;21/06/2018
566;1;0;328,06;328,06;Illumia S.p.A.;Z0E14167CF;SALDO Fatt.n. 3432-PE  del 18/05/2018 Fornitura energia elettrica utenza Sede Municipale mese di aprile 2018  -  provv. 91;21/06/2018;4751;0;164;1;Spese correnti;3;Acquisto di beni e servizi;2;Acquisto di servizi;5;Utenze e canoni;4;Energia elettrica;21/06/2018
567;1;0;278,26;278,26;Illumia S.p.A.;Z0E14167CF;ACCONTO Fatt.n. 3428-PE  del 18/05/2018 Fornitura energia elettrica utenza Polo Scolastico mese di aprile 2018  -  provv. 87;21/06/2018;28001;0;165;1;Spese correnti;3;Acquisto di beni e servizi;2;Acquisto di servizi;5;Utenze e canoni;4;Energia elettrica;21/06/2018
568;1;0;278,26;278,26;Illumia S.p.A.;Z0E14167CF;ACCONTO Fatt.n. 3428-PE  del 18/05/2018 Fornitura energia elettrica utenza Polo Scolastico mese di aprile 2018  -  provv. 87;21/06/2018;29701;0;166;1;Spese correnti;3;Acquisto di beni e servizi;2;Acquisto di servizi;5;Utenze e canoni;4;Energia elettrica;21/06/2018
569;1;0;278,27;278,27;Illumia S.p.A.;Z0E14167CF;SALDO Fatt.n. 3428-PE  del 18/05/2018 Fornitura energia elettrica utenza Polo Scolastico mese di aprile 2018  -  provv. 87;21/06/2018;31801;0;167;1;Spese correnti;3;Acquisto di beni e servizi;2;Acquisto di servizi;5;Utenze e canoni;4;Energia elettrica;21/06/2018
570;1;0;1.259,72;1.259,72;OMESSO NOMINATIVO NEL RISPETTO DELLA NORMATIVA SULLA PROTEZIONE DATI PERSONALI; ;Contributo Regione per nuclei familiari con figli rimasti orfani di un genitore - L.R. n. 30 del 30.12.2016 Art. 59 - A.L. AC N. 126 DEL 19.06.2018;21/06/2018;6770;0;215;1;Spese correnti;4;Trasferimenti correnti;2;Trasferimenti correnti a Famiglie;5;Altri trasferimenti a famiglie;999;Altri trasferimenti a famiglie n.a.c.;21/06/2018
571;1;0;1.764,73;1.764,73;PARCO REGIONALE DEI COLLI EUGANEI; ;Contributo economico anno 2018 - a.l. ac n. 119 del 08.06.2018;21/06/2018;580;0;203;1;Spese correnti;4;Trasferimenti correnti;1;Trasferimenti correnti a Amministrazioni Pubbliche;2;Trasferimenti correnti a Amministrazioni Locali;999;Trasferimenti correnti a altre Amministrazioni Locali n.a.c.;21/06/2018
572;1;0;249;385,2;IL MATTINO DI PADOVA; ;Rinnovo degli abbonamenti per l'anno 2018 a033954;21/06/2018;3760;0;181;1;Spese correnti;3;Acquisto di beni e servizi;2;Acquisto di servizi;99;Altri servizi;999;Altri servizi diversi n.a.c.;21/06/2018
572;2;0;82,9;385,2;PANINI SPA - Abbonamenti Disney; ;Rinnovo degli abbonamenti per l'anno 2018 a Topolino;21/06/2018;3760;0;181;1;Spese correnti;3;Acquisto di beni e servizi;2;Acquisto di servizi;99;Altri servizi;999;Altri servizi diversi n.a.c.;21/06/2018
572;3;0;33,8;385,2;PRESS- DISTRIBUZIONE STAMPA E MULTIMEDIA SRL; ;Rinnovo degli abbonamenti per l'anno 2018  a FOCUS;21/06/2018;3760;0;181;1;Spese correnti;3;Acquisto di beni e servizi;2;Acquisto di servizi;99;Altri servizi;999;Altri servizi diversi n.a.c.;21/06/2018
572;4;0;19,5;385,2;SOC. GABINETTO DI LETTURA; ;Rinnovo degli abbonamenti per l'anno 2018 a  TERRA D'ESTE;21/06/2018;3760;0;181;1;Spese correnti;3;Acquisto di beni e servizi;2;Acquisto di servizi;99;Altri servizi;999;Altri servizi diversi n.a.c.;21/06/2018
573;1;0;3.390,11;3.390,11;Sodexo Italia Spa;64630250F4;SALDO Fatt.n. 7400023253  del 31/05/2018 Fornitura pasti alunni scuola materna mese di maggio 2018;21/06/2018;3404;0;65;1;Spese correnti;3;Acquisto di beni e servizi;2;Acquisto di servizi;15;Contratti di servizio pubblico;6;Contratti di servizio per le mense scolastiche;21/06/2018
574;1;0;3.069,04;3.069,04;Sodexo Italia Spa;64630250F4;SALDO Fatt.n. 7400023254  del 31/05/2018 Fornitura pasti alunni scuola elementare maggio 2018;21/06/2018;3406;0;66;1;Spese correnti;3;Acquisto di beni e servizi;2;Acquisto di servizi;15;Contratti di servizio pubblico;6;Contratti di servizio per le mense scolastiche;21/06/2018
575;1;0;629,87;629,87;Sodexo Italia Spa;64630250F4;SALDO Fatt.n. 7400023255  del 31/05/2018 Servizio di sorveglianza refettorio mese di maggio 2018;21/06/2018;3406;0;154;1;Spese correnti;3;Acquisto di beni e servizi;2;Acquisto di servizi;15;Contratti di servizio pubblico;6;Contratti di servizio per le mense scolastiche;21/06/2018
576;1;0;4.169,00;4.169,00;COOPERATIVA SOCIALE SERVIZI ASSOCIATI;7079166895;SALDO Fatt.n. D-244  del 31/05/2018 Servizio di trasporto scolastico mese di maggio 2018;21/06/2018;3413;0;279;1;Spese correnti;3;Acquisto di beni e servizi;2;Acquisto di servizi;15;Contratti di servizio pubblico;2;Contratti di servizio di trasporto scolastico;21/06/2018
577;1;0;750;750;"CASA DI RIPOSO ""A. SIMIONATI"""; ;SALDO Fatt.n. 65/E  del 31/05/2018 Quota retta ricovero R.R. mese di maggio 2018;21/06/2018;6875;0;15;1;Spese correnti;3;Acquisto di beni e servizi;2;Acquisto di servizi;99;Altri servizi;999;Altri servizi diversi n.a.c.;21/06/2018
578;1;0;1.386,80;1.386,80;FALTRACCO CLAUDIO; ;ACCONTO Fatt.n. 2/E  del 07/06/2018 SALDO COMPENSO PER L'ATTIVITA DI REVISORE DEI CONTI PER IL PERIODO DAL 01/01/2018 AL 14/05/2018;21/06/2018;576;0;30;1;Spese correnti;3;Acquisto di beni e servizi;2;Acquisto di servizi;1;Organi e incarichi istituzionali dell'amministrazione;8;Compensi agli organi istituzionali di revisione, di controllo ed altri incarichi istituzionali dell'amministrazione;21/06/2018
579;1;0;243,52;243,52;FALTRACCO CLAUDIO; ;SALDO Fatt.n. 2/E  del 07/06/2018 SALDO COMPENSO PER L'ATTIVITA DI REVISORE DEI CONTI PER IL PERIODO DAL 01/01/2018 AL 14/05/2018;21/06/2018;576;0;136;1;Spese correnti;3;Acquisto di beni e servizi;2;Acquisto di servizi;1;Organi e incarichi istituzionali dell'amministrazione;8;Compensi agli organi istituzionali di revisione, di controllo ed altri incarichi istituzionali dell'amministrazione;21/06/2018
580;1;0;196,08;196,08;PILO SNC;Z641F2729B;SALDO Fatt.n. 5/E  del 31/05/2018 Servizio sostitutivo mensa dipendenti mese di maggio 2018;21/06/2018;9375;0;206;1;Spese correnti;3;Acquisto di beni e servizi;2;Acquisto di servizi;99;Altri servizi;999;Altri servizi diversi n.a.c.;21/06/2018
581;1;0;4.959,30;4.959,30;MARTINI LUCIANO SRL;Z70188CBBO;SALDO Fatt.n. 9/EL  del 06/06/2018 Lavori manutenzione ordinaria strade fino al 31.05.2018;21/06/2018;1302;0;102;1;Spese correnti;3;Acquisto di beni e servizi;2;Acquisto di servizi;9;Manutenzione ordinaria e riparazioni;8;Manutenzione ordinaria e riparazioni di beni immobili;21/06/2018
582;1;0;200;200;ASSOCIAZIONE BANCO ALIMENTARE DEL VENETO ONLUS; ;Contributo per l'anno 2018. - A.L. AC N. 115 DEL 06.06.2018;21/06/2018;7200;0;180;1;Spese correnti;4;Trasferimenti correnti;4;Trasferimenti correnti a Istituzioni Sociali Private;1;Trasferimenti correnti a Istituzioni Sociali Private;1;Trasferimenti correnti a Istituzioni Sociali Private;21/06/2018
583;1;0;1.200,00;4.400,00;OMESSO NOMINATIVO NEL RISPETTO DELLA NORMATIVA SULLA PROTEZIONE DATI PERSONALI; ;Contributo Impegnativa di Cura Domiciliare (ICDm) primo trimestre 2018 - per Albertin Maria;21/06/2018;6710;0;195;1;Spese correnti;4;Trasferimenti correnti;2;Trasferimenti correnti a Famiglie;5;Altri trasferimenti a famiglie;999;Altri trasferimenti a famiglie n.a.c.;21/06/2018
583;2;0;1.200,00;4.400,00;OMESSO NOMINATIVO NEL RISPETTO DELLA NORMATIVA SULLA PROTEZIONE DATI PERSONALI; ;Contributo Impegnativa di Cura Domiciliare (ICDm) primo trimestre 2018 - per Mion Giuseppe;21/06/2018;6710;0;195;1;Spese correnti;4;Trasferimenti correnti;2;Trasferimenti correnti a Famiglie;5;Altri trasferimenti a famiglie;999;Altri trasferimenti a famiglie n.a.c.;21/06/2018
583;3;0;800;4.400,00;OMESSO NOMINATIVO NEL RISPETTO DELLA NORMATIVA SULLA PROTEZIONE DATI PERSONALI; ;Contributo Impegnativa di Cura Domiciliare (ICDm) primo trimestre 2018 per Santimaria Antonietta;21/06/2018;6710;0;195;1;Spese correnti;4;Trasferimenti correnti;2;Trasferimenti correnti a Famiglie;5;Altri trasferimenti a famiglie;999;Altri trasferimenti a famiglie n.a.c.;21/06/2018
583;4;0;1.200,00;4.400,00;OMESSO NOMINATIVO NEL RISPETTO DELLA NORMATIVA SULLA PROTEZIONE DATI PERSONALI; ;Contributo Impegnativa di Cura Domiciliare (ICDm) primo trimestre 2018  per Rizzi Lorenzo;21/06/2018;6710;0;195;1;Spese correnti;4;Trasferimenti correnti;2;Trasferimenti correnti a Famiglie;5;Altri trasferimenti a famiglie;999;Altri trasferimenti a famiglie n.a.c.;21/06/2018
584;1;0;4,17;20,75;TELECOM ITALIA SPA;ZE31381BC6;SALDO Fatt.n. 8E00312042  del 06/04/2018 Conguaglio spese telefoniche;25/06/2018;4751;0;67;1;Spese correnti;3;Acquisto di beni e servizi;2;Acquisto di servizi;5;Utenze e canoni;1;Telefonia fissa;25/06/2018
584;2;0;16,58;20,75;TELECOM ITALIA SPA;ZE31381BC6;SALDO Fatt.n. 8E00311173  del 06/04/2018 Conguaglio spese telefoniche;25/06/2018;4751;0;67;1;Spese correnti;3;Acquisto di beni e servizi;2;Acquisto di servizi;5;Utenze e canoni;1;Telefonia fissa;25/06/2018
585;1;0;8.881,60;8.881,60;DE PAOLI ALESSANDRO;ZCB2395E41;SALDO Fatt.n. 3/PA  del 13/06/2018 COMPENSO PER LE PRESTAZIONI PROFESSIONALI RELATIVE A PROGETTO DEFINITIVO RIQUALIFICAZIONE PIAZZE VO' CAPOLUOGO. ACCONTO;26/06/2018;11930;0;201;2;Spese in conto capitale;5;Altre spese in conto capitale;99;Altre spese in conto capitale n.a.c.;99;Altre spese in conto capitale n.a.c.;999;Altre spese in conto capitale n.a.c.;26/06/2018
586;1;0;8.772,20;8.772,20;S.E.S.A. SPA;Z11182D6F2;SALDO Fatt.n. 2000795  del 31/05/2018;26/06/2018;5780;0;41;1;Spese correnti;3;Acquisto di beni e servizi;2;Acquisto di servizi;15;Contratti di servizio pubblico;4;Contratti di servizio per la raccolta rifiuti;26/06/2018
587;1;0;1.759,92;1.759,92;New Generation s.r.l.;Z542325083;SALDO Fatt.n. 19A  del 12/06/2018 Manutenzione straordinaria lavori elettrici barchessa Villa Venier;26/06/2018;10430;0;140;2;Spese in conto capitale;2;Investimenti fissi lordi e acquisto di terreni;1;Beni materiali;10;Beni immobili di valore culturale, storico ed artistico;999;Beni immobili di valore culturale, storico ed artistico n.a.c.;26/06/2018
588;1;0;277,18;277,18;VENETA SICUREZZA E SEGNALETICA STRADALE  SRL;ZD723F146D;SALDO Fatt.n. 74  del 21/06/2018 Sostituzione batterie per lampade ecosolar;26/06/2018;1300;0;213;1;Spese correnti;3;Acquisto di beni e servizi;1;Acquisto di beni;2;Altri beni di consumo;999;Altri beni e materiali di consumo n.a.c.;26/06/2018
589;1;0;1.647,00;1.647,00;Idee Verdi Cooperativa Sociale a r.l.;Z1122FBC3F;SALDO Fatt.n. 70  del 15/06/2018 Taglio e potatura alberi;26/06/2018;1302;0;126;1;Spese correnti;3;Acquisto di beni e servizi;2;Acquisto di servizi;9;Manutenzione ordinaria e riparazioni;8;Manutenzione ordinaria e riparazioni di beni immobili;26/06/2018
590;1;0;1.708,00;1.708,00;MIRANDOLA IMPIANTI SRL;Z6823B68A2;SALDO Fatt.n. 14/PA  del 14/06/2018 Fornitura ed installazione di  un condizionatore nei locali di Triveneta certificazione;26/06/2018;1300;0;190;1;Spese correnti;3;Acquisto di beni e servizi;1;Acquisto di beni;2;Altri beni di consumo;999;Altri beni e materiali di consumo n.a.c.;26/06/2018
591;1;0;440,01;440,01;BOGONI ALFONSO & C. S.A.S.;Z9E1D16AO2;SALDO Fatt.n. V0000005FE  del 31/05/2018 Fornitura carburante per automezzi comunali mese di maggio 2018;26/06/2018;570;0;39;1;Spese correnti;3;Acquisto di beni e servizi;1;Acquisto di beni;2;Altri beni di consumo;2;Carburanti, combustibili e lubrificanti;26/06/2018
592;1;0;13.323,94;13.323,94;DE VIZIA TRANSFER S.P.A.;6848933E4B;SALDO Fatt.n. V3-30658  del 31/05/2018 Raccolta rifiuti RSU mese di maggio 2018;26/06/2018;5780;0;18;1;Spese correnti;3;Acquisto di beni e servizi;2;Acquisto di servizi;15;Contratti di servizio pubblico;4;Contratti di servizio per la raccolta rifiuti;26/06/2018
593;1;0;174,85;174,85;ZEFIRO SRL;Z3D1A45638;ACCONTO Fatt.n. 22/PA  del 31/05/2018 Servizio di pulizia edifici comunali MESE di MAGGIO 2018;26/06/2018;1400;0;396;1;Spese correnti;3;Acquisto di beni e servizi;2;Acquisto di servizi;9;Manutenzione ordinaria e riparazioni;8;Manutenzione ordinaria e riparazioni di beni immobili;26/06/2018
594;1;0;294,75;294,75;ZEFIRO SRL;Z3D1A45638;ACCONTO Fatt.n. 22/PA  del 31/05/2018 Servizio di pulizia edifici comunali MESE di MAGGIO 2018;26/06/2018;37601;0;395;1;Spese correnti;3;Acquisto di beni e servizi;2;Acquisto di servizi;99;Altri servizi;999;Altri servizi diversi n.a.c.;26/06/2018
595;1;0;262,18;262,18;ZEFIRO SRL;Z3D1A45638;ACCONTO Fatt.n. 22/PA  del 31/05/2018 Servizio di pulizia edifici comunali MESE di MAGGIO 2018;26/06/2018;2973;0;394;1;Spese correnti;3;Acquisto di beni e servizi;2;Acquisto di servizi;99;Altri servizi;999;Altri servizi diversi n.a.c.;26/06/2018
596;1;0;1.045,00;1.045,00;ZEFIRO SRL;Z3D1A45638;SALDO Fatt.n. 22/PA  del 31/05/2018 Servizio di pulizia edifici comunali MESE di MAGGIO 2018;26/06/2018;475;0;393;1;Spese correnti;3;Acquisto di beni e servizi;2;Acquisto di servizi;99;Altri servizi;999;Altri servizi diversi n.a.c.;26/06/2018
597;1;0;400;400;"Associazione ""Oltre il Mare"" Presidente Ilacqua Anna"; ;Contributo economico anno 2018 - A.L. AC N. 128 DEL 21.06.2018;26/06/2018;7200;0;197;1;Spese correnti;4;Trasferimenti correnti;4;Trasferimenti correnti a Istituzioni Sociali Private;1;Trasferimenti correnti a Istituzioni Sociali Private;1;Trasferimenti correnti a Istituzioni Sociali Private;26/06/2018
598;1;0;200;200;"Associazione ""Idee Nuove per Vo' Danilo Malesani"""; ;Contributo economico anno 2018 - A.L. AC N. 128 DEL 21.06.2018;26/06/2018;7200;0;198;1;Spese correnti;4;Trasferimenti correnti;4;Trasferimenti correnti a Istituzioni Sociali Private;1;Trasferimenti correnti a Istituzioni Sociali Private;1;Trasferimenti correnti a Istituzioni Sociali Private;26/06/2018
599;1;0;200;200;ASS.FAM.CADUTI E DISPERSI IN GUERRA -PRES.ZATTARIN ANNA; ;Contributo economico anno 2018 - A.L. AC N. 128 DEL 21.06.2018;26/06/2018;7200;0;200;1;Spese correnti;4;Trasferimenti correnti;4;Trasferimenti correnti a Istituzioni Sociali Private;1;Trasferimenti correnti a Istituzioni Sociali Private;1;Trasferimenti correnti a Istituzioni Sociali Private;26/06/2018
601;1;0;1.354,90;3.428,90;ACCATRE S.r.l.; ;ACCONTO Fatt.n. 1/180883  del 19/06/2018;26/06/2018;1477;0;91;1;Spese correnti;3;Acquisto di beni e servizi;2;Acquisto di servizi;99;Altri servizi;999;Altri servizi diversi n.a.c.;26/06/2018
601;2;0;2.074,00;3.428,90;ACCATRE S.r.l.;Z4B2257F66;ACCONTO Fatt.n. 1/180883  del 19/06/2018;26/06/2018;1477;0;91;1;Spese correnti;3;Acquisto di beni e servizi;2;Acquisto di servizi;99;Altri servizi;999;Altri servizi diversi n.a.c.;26/06/2018
602;1;0;2.989,00;2.989,00;ACCATRE S.r.l.; ;SALDO Fatt.n. 1/180883  del 19/06/2018;26/06/2018;1470;0;92;1;Spese correnti;3;Acquisto di beni e servizi;2;Acquisto di servizi;17;Servizi finanziari;999;Spese per servizi finanziari n.a.c.;26/06/2018
603;1;0;1.220,00;1.220,00;ACCATRE S.r.l.;ZC820773FA;SALDO Fatt.n. 1/180869  del 15/06/2018 Convenzione per servizio stato patrimoniale e conto economico 118 per anno 2018;26/06/2018;555;0;359;1;Spese correnti;3;Acquisto di beni e servizi;2;Acquisto di servizi;19;Servizi informatici e di telecomunicazioni;1;Gestione e manutenzione applicazioni;26/06/2018
604;1;0;368,35;368,35;MAPLAST di Mischiari Luca;Z291DF171A;SALDO Fatt.n. 31/PA/2018  del 13/06/2018 Rimborso costo copia stampanti a noleggio periodo gennaio - maggio 2018;26/06/2018;4752;0;207;1;Spese correnti;3;Acquisto di beni e servizi;2;Acquisto di servizi;9;Manutenzione ordinaria e riparazioni;5;Manutenzione ordinaria e riparazioni di attrezzature;26/06/2018
605;1;0;164,97;164,97;POSTE ITALIANE SPA;Z961438A4F;SALDO Fatt.n. 8718206505  del 13/06/2018 Spese postali mese di aprile 2018 - Rendiconto 2097440683;26/06/2018;4800;0;42;1;Spese correnti;3;Acquisto di beni e servizi;2;Acquisto di servizi;16;Servizi amministrativi;2;Spese postali;26/06/2018
